Workbook

Sheet 월별 참여 현황(표준중소형제주)
B2: ㅇ 월별 의무감축용량(MW)
B3: 연 | D3: 2021 | E3: 2022 | F3: 2022 | G3: 2022 | H3: 2022 | I3: 2022 | J3: 2022 | K3: 2022 | L3: 2022 | M3: 2022 | N3: 2022 | O3: 2022
B4: 월 | D4: 12 | E4: 1 | F4: 2 | G4: 3 | H4: 4 | I4: 5 | J4: 6 | K4: 7 | L4: 8 | M4: 9 | N4: 10 | O4: 11
B5: 표 준 | C5: 수도권 | D5: 589.581 | E5: 589.581 | F5: 589.581 | G5: 589.581 | H5: 589.581 | I5: 589.581 | J5: 602.616 | K5: 602.616 | L5: 586.616 | M5: 586.616 | N5: 586.616 | O5: 586.616
C6: 비수도권 | D6: 3232.646 | E6: 3232.646 | F6: 3232.646 | G6: 3232.646 | H6: 3232.646 | I6: 3232.646 | J6: 3551.56 | K6: 3551.56 | L6: 3551.56 | M6: 3551.56 | N6: 3551.56 | O6: 3551.56
B7: 중소형 | C7: 수도권 | D7: 261.369 | E7: 261.369 | F7: 261.369 | G7: 261.369 | H7: 261.369 | I7: 261.369 | J7: 269.825 | K7: 269.825 | L7: 269.046 | M7: 269.046 | N7: 269.046 | O7: 269.046
C8: 비수도권 | D8: 469.338 | E8: 469.338 | F8: 466.159 | G8: 466.159 | H8: 466.159 | I8: 466.159 | J8: 499.537 | K8: 499.537 | L8: 489.666 | M8: 489.666 | N8: 489.666 | O8: 489.666
B9: 제 주 | D9: - | E9: - | F9: - | G9: - | H9: - | I9: - | J9: - | K9: - | L9: - | M9: - | N9: - | O9: -
B10: 합 계 | D10: 4552.934 | E10: 4552.934 | F10: 4549.755 | G10: 4549.755 | H10: 4549.755 | I10: 4549.755 | J10: 4923.538 | K10: 4923.538 | L10: 4896.888 | M10: 4896.888 | N10: 4896.888 | O10: 4896.888
B12: 연 | D12: 2022 | E12: 2023 | F12: 2023 | G12: 2023 | H12: 2023 | I12: 2023 | J12: 2023 | K12: 2023 | L12: 2023 | M12: 2023 | N12: 2023 | O12: 2023
B13: 월 | D13: 12 | E13: 1 | F13: 2 | G13: 3 | H13: 4 | I13: 5 | J13: 6 | K13: 7 | L13: 8 | M13: 9 | N13: 10 | O13: 11
B14: 표 준 | C14: 수도권 | D14: 573.48 | E14: 573.48 | F14: 573.48 | G14: 573.48 | H14: 573.48 | I14: 573.48 | J14: 586.88 | K14: 586.88 | L14: 586.88 | M14: 586.88 | N14: 586.88 | O14: 586.88
C15: 비수도권 | D15: 3375.338 | E15: 3375.338 | F15: 3375.338 | G15: 3375.338 | H15: 3375.338 | I15: 3375.338 | J15: 3665.968 | K15: 3665.968 | L15: 3663.304 | M15: 3663.304 | N15: 3663.304 | O15: 3663.304
B16: 중소형 | C16: 수도권 | D16: 184.615 | E16: 184.615 | F16: 179.997 | G16: 179.997 | H16: 179.997 | I16: 179.997 | J16: 250.083 | K16: 250.083 | L16: 247.254 | M16: 247.254 | N16: 247.254 | O16: 247.254
C17: 비수도권 | D17: 250.822 | E17: 250.822 | F17: 250.822 | G17: 250.822 | H17: 250.822 | I17: 250.822 | J17: 372.14 | K17: 372.14 | L17: 365.607 | M17: 365.607 | N17: 365.607 | O17: 365.607
B18: 제 주 | D18: 37.217 | E18: 37.217 | F18: 37.217 | G18: 37.217 | H18: 37.217 | I18: 37.217 | J18: 37.217 | K18: 37.217 | L18: 32.384 | M18: 32.384 | N18: 32.384 | O18: 32.384
B19: 합 계 | D19: 4421.472 | E19: 4421.472 | F19: 4416.854 | G19: 4416.854 | H19: 4416.854 | I19: 4416.854 | J19: 4912.288 | K19: 4912.288 | L19: 4895.429 | M19: 4895.429 | N19: 4895.429 | O19: 4895.429
B21: 연 | D21: 2023 | E21: 2024 | F21: 2024 | G21: 2024 | H21: 2024 | I21: 2024 | J21: 2024 | K21: 2024 | L21: 2024 | M21: 2024 | N21: 2024 | O21: 2024
B22: 월 | D22: 12 | E22: 1 | F22: 2 | G22: 3 | H22: 4 | I22: 5 | J22: 6 | K22: 7 | L22: 8 | M22: 9 | N22: 10 | O22: 11
B23: 표 준 | C23: 수도권 | D23: 601.598 | E23: 601.598 | F23: 597.651 | G23: 597.651 | H23: 597.651 | I23: 597.651 | J23: 597.651 | K23: 597.651 | L23: 583.793 | M23: 583.793 | N23: 583.793 | O23: 583.793
C24: 비수도권 | D24: 3342.495 | E24: 3342.495 | F24: 3342.085 | G24: 3342.085 | H24: 3342.085 | I24: 3342.085 | J24: 3403.864 | K24: 3403.864 | L24: 3388.156 | M24: 3388.156 | N24: 3388.156 | O24: 3388.156
B25: 중소형 | C25: 수도권 | D25: 226.327 | E25: 226.327 | F25: 221.175 | G25: 221.175 | H25: 221.175 | I25: 221.175 | J25: 239.825 | K25: 239.825 | L25: 230.861 | M25: 230.861 | N25: 230.861 | O25: 230.861
C26: 비수도권 | D26: 350.787 | E26: 350.787 | F26: 343.982 | G26: 343.982 | H26: 343.982 | I26: 343.982 | J26: 355.782 | K26: 355.782 | L26: 320.111 | M26: 320.111 | N26: 320.111 | O26: 320.111
B27: 제 주 | D27: 33.447 | E27: 33.447 | F27: 32.311 | G27: 32.311 | H27: 32.311 | I27: 32.311 | J27: 32.311 | K27: 32.311 | L27: 32.311 | M27: 32.311 | N27: 32.311 | O27: 32.311
B28: 합 계 | D28: 4554.654 | E28: 4554.654 | F28: =SUM(F23:F27) -> 4537.204 | G28: 4537.204 | H28: 4537.204 | I28: 4537.204 | J28: 4629.433 | K28: 4629.433 | L28: 4555.232 | M28: 4555.232 | N28: 4555.232 | O28: 4555.232
B30: 연 | D30: 2024 | E30: 2025 | F30: 2025 | G30: 2025 | H30: 2025 | I30: 2025 | J30: 2025 | K30: 2025 | L30: 2025 | M30: 2025 | N30: 2025 | O30: 2025
B31: 월 | D31: 12 | E31: 1 | F31: 2 | G31: 3 | H31: 4 | I31: 5 | J31: 6 | K31: 7 | L31: 8 | M31: 9 | N31: 10 | O31: 11
B32: 표 준 | C32: 수도권 | D32: 577.853 | E32: 577.853 | F32: 577.853 | G32: 577.853 | H32: 577.853 | I32: 577.853
C33: 비수도권 | D33: 3106.186 | E33: 3080.948 | F33: 3080.948 | G33: 3080.948 | H33: 3080.948 | I33: 3080.948
B34: 중소형 | C34: 수도권 | D34: 182.803 | E34: 182.803 | F34: 182.803 | G34: 182.803 | H34: 182.803 | I34: 182.803
C35: 비수도권 | D35: 295.519 | E35: 293.417 | F35: 293.417 | G35: 293.417 | H35: 293.417 | I35: 293.417
B36: 제 주 | D36: 35.93 | E36: 35.335 | F36: 35.335 | G36: 35.335 | H36: 35.335 | I36: 35.335
B37: 합 계 | D37: 4198.291 | E37: 4170.356 | F37: 4170.356 | G37: 4170.356 | H37: 4170.356 | I37: 4170.356
B39: ㅇ 월별 수요자원 수(개)
B40: 연 | D40: 2021 | E40: 2022 | F40: 2022 | G40: 2022 | H40: 2022 | I40: 2022 | J40: 2022 | K40: 2022 | L40: 2022 | M40: 2022 | N40: 2022 | O40: 2022
B41: 월 | D41: 12 | E41: 1 | F41: 2 | G41: 3 | H41: 4 | I41: 5 | J41: 6 | K41: 7 | L41: 8 | M41: 9 | N41: 10 | O41: 11
B42: 표 준 | C42: 수도권 | D42: 12 | E42: 12 | F42: 12 | G42: 12 | H42: 12 | I42: 12 | J42: 13 | K42: 13 | L42: 12 | M42: 12 | N42: 12 | O42: 12
C43: 비수도권 | D43: 20 | E43: 20 | F43: 20 | G43: 20 | H43: 20 | I43: 20 | J43: 24 | K43: 24 | L43: 24 | M43: 24 | N43: 24 | O43: 24
B44: 중소형 | C44: 수도권 | D44: 21 | E44: 21 | F44: 21 | G44: 21 | H44: 21 | I44: 21 | J44: 23 | K44: 23 | L44: 23 | M44: 23 | N44: 23 | O44: 23
C45: 비수도권 | D45: 32 | E45: 32 | F45: 32 | G45: 32 | H45: 32 | I45: 32 | J45: 38 | K45: 38 | L45: 37 | M45: 37 | N45: 37 | O45: 37
B46: 제 주 | D46: - | E46: - | F46: - | G46: - | H46: - | I46: - | J46: - | K46: - | L46: - | M46: - | N46: - | O46: -
B47: 합 계 | D47: 85 | E47: 85 | F47: 85 | G47: 85 | H47: 85 | I47: 85 | J47: 98 | K47: 98 | L47: 96 | M47: 96 | N47: 96 | O47: 96
B49: 연 | D49: 2022 | E49: 2023 | F49: 2023 | G49: 2023 | H49: 2023 | I49: 2023 | J49: 2023 | K49: 2023 | L49: 2023 | M49: 2023 | N49: 2023 | O49: 2023
B50: 월 | D50: 12 | E50: 1 | F50: 2 | G50: 3 | H50: 4 | I50: 5 | J50: 6 | K50: 7 | L50: 8 | M50: 9 | N50: 10 | O50: 11
B51: 표 준 | C51: 수도권 | D51: 11 | E51: 11 | F51: 11 | G51: 11 | H51: 11 | I51: 11 | J51: 12 | K51: 12 | L51: 12 | M51: 12 | N51: 12 | O51: 12
C52: 비수도권 | D52: 21 | E52: 21 | F52: 21 | G52: 21 | H52: 21 | I52: 21 | J52: 26 | K52: 26 | L52: 26 | M52: 26 | N52: 26 | O52: 26
B53: 중소형 | C53: 수도권 | D53: 17 | E53: 17 | F53: 17 | G53: 17 | H53: 17 | I53: 17 | J53: 26 | K53: 26 | L53: 26 | M53: 26 | N53: 26 | O53: 26
C54: 비수도권 | D54: 18 | E54: 18 | F54: 18 | G54: 18 | H54: 18 | I54: 18 | J54: 32 | K54: 32 | L54: 32 | M54: 32 | N54: 32 | O54: 32
B55: 제 주 | D55: 5 | E55: 5 | F55: 5 | G55: 5 | H55: 5 | I55: 5 | J55: 5 | K55: 5 | L55: 4 | M55: 4 | N55: 4 | O55: 4
B56: 합 계 | D56: 72 | E56: 72 | F56: 72 | G56: 72 | H56: 72 | I56: 72 | J56: 101 | K56: 101 | L56: 100 | M56: 100 | N56: 100 | O56: 100
B58: 연 | D58: 2023 | E58: 2024 | F58: 2024 | G58: 2024 | H58: 2024 | I58: 2024 | J58: 2024 | K58: 2024 | L58: 2024 | M58: 2024 | N58: 2024 | O58: 2024
B59: 월 | D59: 12 | E59: 1 | F59: 2 | G59: 3 | H59: 4 | I59: 5 | J59: 6 | K59: 7 | L59: 8 | M59: 9 | N59: 10 | O59: 11
B60: 표 준 | C60: 수도권 | D60: 11 | E60: 11 | F60: 11 | G60: 11 | H60: 11 | I60: 11 | J60: 11 | K60: 11 | L60: 11 | M60: 11 | N60: 11 | O60: 11
C61: 비수도권 | D61: 18 | E61: 18 | F61: 18 | G61: 18 | H61: 18 | I61: 18 | J61: 20 | K61: 20 | L61: 20 | M61: 20 | N61: 20 | O61: 20
B62: 중소형 | C62: 수도권 | D62: 21 | E62: 21 | F62: 20 | G62: 20 | H62: 20 | I62: 20 | J62: 24 | K62: 24 | L62: 24 | M62: 24 | N62: 24 | O62: 24
C63: 비수도권 | D63: 26 | E63: 26 | F63: 26 | G63: 26 | H63: 26 | I63: 26 | J63: 30 | K63: 30 | L63: 27 | M63: 27 | N63: 27 | O63: 27
B64: 제 주 | D64: 4 | E64: 4 | F64: 4 | G64: 4 | H64: 4 | I64: 4 | J64: 4 | K64: 4 | L64: 4 | M64: 4 | N64: 4 | O64: 4
B65: 합 계 | D65: 80 | E65: 80 | F65: =SUM(F60:F64) -> 79 | G65: =SUM(G60:G64) -> 79 | H65: =SUM(H60:H64) -> 79 | I65: =SUM(I60:I64) -> 79 | J65: 89 | K65: 89 | L65: 86 | M65: 86 | N65: 86 | O65: 86
B67: 연 | D67: 2024 | E67: 2025 | F67: 2025 | G67: 2025 | H67: 2025 | I67: 2025 | J67: 2025 | K67: 2025 | L67: 2025 | M67: 2025 | N67: 2025 | O67: 2025
B68: 월 | D68: 12 | E68: 1 | F68: 2 | G68: 3 | H68: 4 | I68: 5 | J68: 6 | K68: 7 | L68: 8 | M68: 9 | N68: 10 | O68: 11
B69: 표 준 | C69: 수도권 | D69: 12 | E69: 12 | F69: 12 | G69: 12 | H69: 12 | I69: 12
C70: 비수도권 | D70: 17 | E70: 17 | F70: 17 | G70: 17 | H70: 17 | I70: 17
B71: 중소형 | C71: 수도권 | D71: 18 | E71: 18 | F71: 18 | G71: 18 | H71: 18 | I71: 18
C72: 비수도권 | D72: 27 | E72: 27 | F72: 27 | G72: 27 | H72: 27 | I72: 27
B73: 제 주 | D73: 4 | E73: 4 | F73: 4 | G73: 4 | H73: 4 | I73: 4
B74: 합 계 | D74: 78 | E74: 78 | F74: 78 | G74: 78 | H74: 78 | I74: 78
B76: ㅇ 월별 참여고객 수(개)
B77: 연 | D77: 2021 | E77: 2022 | F77: 2022 | G77: 2022 | H77: 2022 | I77: 2022 | J77: 2022 | K77: 2022 | L77: 2022 | M77: 2022 | N77: 2022 | O77: 2022
B78: 월 | D78: 12 | E78: 1 | F78: 2 | G78: 3 | H78: 4 | I78: 5 | J78: 6 | K78: 7 | L78: 8 | M78: 9 | N78: 10 | O78: 11
B79: 표 준 | C79: 수도권 | D79: 517 | E79: 517 | F79: 517 | G79: 524 | H79: 524 | I79: 524 | J79: 550 | K79: 550 | L79: 524 | M79: 520 | N79: 520 | O79: 520
C80: 비수도권 | D80: 1272 | E80: 1272 | F80: 1272 | G80: 1291 | H80: 1291 | I80: 1291 | J80: 1329 | K80: 1329 | L80: 1329 | M80: 1322 | N80: 1322 | O80: 1322
B81: 중소형 | C81: 수도권 | D81: 969 | E81: 969 | F81: 969 | G81: 963 | H81: 963 | I81: 963 | J81: 995 | K81: 995 | L81: 995 | M81: 1001 | N81: 1001 | O81: 1001
C82: 비수도권 | D82: 2276 | E82: 2276 | F82: 2276 | G82: 2243 | H82: 2243 | I82: 2243 | J82: 2438 | K82: 2438 | L82: 2422 | M82: 2396 | N82: 2396 | O82: 2396
B83: 제 주 | D83: - | E83: - | F83: - | G83: - | H83: - | I83: - | J83: - | K83: - | L83: - | M83: - | N83: - | O83: -
B84: 합 계 | D84: 5034 | E84: 5034 | F84: 5034 | G84: 5021 | H84: 5021 | I84: 5021 | J84: 5312 | K84: 5312 | L84: 5270 | M84: 5239 | N84: 5239 | O84: 5239
B86: 연 | D86: 2022 | E86: 2023 | F86: 2023 | G86: 2023 | H86: 2023 | I86: 2023 | J86: 2023 | K86: 2023 | L86: 2023 | M86: 2023 | N86: 2023 | O86: 2023
B87: 월 | D87: 12 | E87: 1 | F87: 2 | G87: 3 | H87: 4 | I87: 5 | J87: 6 | K87: 7 | L87: 8 | M87: 9 | N87: 10 | O87: 11
B88: 표 준 | C88: 수도권 | D88: 504 | E88: 504 | F88: 504 | G88: 503 | H88: 503 | I88: 503 | J88: 544 | K88: 544 | L88: 544 | M88: 544 | N88: 544 | O88: 544
C89: 비수도권 | D89: 1306 | E89: 1306 | F89: 1306 | G89: 1405 | H89: 1405 | I89: 1405 | J89: 1476 | K89: 1476 | L89: 1476 | M89: 1476 | N89: 1476 | O89: 1476
B90: 중소형 | C90: 수도권 | D90: 620 | E90: 620 | F90: 620 | G90: 618 | H90: 618 | I90: 618 | J90: 1020 | K90: 1020 | L90: 1020 | M90: 1020 | N90: 1020 | O90: 1020
C91: 비수도권 | D91: 1204 | E91: 1204 | F91: 1204 | G91: 1157 | H91: 1157 | I91: 1157 | J91: 1886 | K91: 1886 | L91: 1885 | M91: 1885 | N91: 1885 | O91: 1885
B92: 제 주 | D92: 128 | E92: 128 | F92: 128 | G92: 130 | H92: 130 | I92: 130 | J92: 133 | K92: 133 | L92: 121 | M92: 121 | N92: 121 | O92: 121
B93: 합 계 | D93: 3762 | E93: 3762 | F93: 3762 | G93: 3813 | H93: 3813 | I93: 3813 | J93: 5059 | K93: 5059 | L93: 5046 | M93: 5046 | N93: 5046 | O93: 5046
B95: 연 | D95: 2023 | E95: 2024 | F95: 2024 | G95: 2024 | H95: 2024 | I95: 2024 | J95: 2024 | K95: 2024 | L95: 2024 | M95: 2024 | N95: 2024 | O95: 2024
B96: 월 | D96: 12 | E96: 1 | F96: 2 | G96: 3 | H96: 4 | I96: 5 | J96: 6 | K96: 7 | L96: 8 | M96: 9 | N96: 10 | O96: 11
B97: 표 준 | C97: 수도권 | D97: 514 | E97: 514 | F97: 514 | G97: 513 | H97: 513 | I97: 513 | J97: 543 | K97: 542 | L97: 540 | M97: 544 | N97: 544 | O97: 544
C98: 비수도권 | D98: 1313 | E98: 1313 | F98: 1313 | G98: 1325 | H98: 1325 | I98: 1325 | J98: 1345 | K98: 1344 | L98: 1337 | M98: 1354 | N98: 1354 | O98: 1354
B99: 중소형 | C99: 수도권 | D99: 878 | E99: 878 | F99: 866 | G99: 856 | H99: 856 | I99: 856 | J99: 1004 | K99: 1004 | L99: 1003 | M99: 981 | N99: 981 | O99: 981
C100: 비수도권 | D100: 1762 | E100: 1762 | F100: 1762 | G100: 1718 | H100: 1718 | I100: 1718 | J100: 1860 | K100: 1857 | L100: 1782 | M100: 1761 | N100: 1761 | O100: 1761
B101: 제 주 | D101: 104 | E101: 104 | F101: 104 | G101: 101 | H101: 101 | I101: 101 | J101: 100 | K101: 99 | L101: 99 | M101: 99 | N101: 99 | O101: 99
B102: 합 계 | D102: 4571 | E102: 4571 | F102: =SUM(F97:F101) -> 4559 | G102: 4513 | H102: 4513 | I102: 4513 | J102: 4852 | K102: 4846 | L102: 4761 | M102: 4739 | N102: 4739 | O102: 4739
B104: 연 | D104: 2024 | E104: 2025 | F104: 2025 | G104: 2025 | H104: 2025 | I104: 2025 | J104: 2025 | K104: 2025 | L104: 2025 | M104: 2025 | N104: 2025 | O104: 2025
B105: 월 | D105: 12 | E105: 1 | F105: 2 | G105: 3 | H105: 4 | I105: 5 | J105: 6 | K105: 7 | L105: 8 | M105: 9 | N105: 10 | O105: 11
B106: 표 준 | C106: 수도권 | D106: 515 | E106: 515 | F106: 515 | G106: 525 | H106: 525 | I106: 525
C107: 비수도권 | D107: 1182 | E107: 1182 | F107: 1182 | G107: 1187 | H107: 1187 | I107: 1187
B108: 중소형 | C108: 수도권 | D108: 757 | E108: 757 | F108: 757 | G108: 753 | H108: 753 | I108: 753
C109: 비수도권 | D109: 1649 | E109: 1649 | F109: 1649 | G109: 1637 | H109: 1637 | I109: 1637
B110: 제 주 | D110: 114 | E110: 114 | F110: 114 | G110: 114 | H110: 114 | I110: 114
B111: 합 계 | D111: 4217 | E111: 4217 | F111: 4217 | G111: 4216 | H111: 4216 | I111: 4216

Sheet 월별 참여 현황(국민주파수플러스)
B2: ㅇ 국민DR 참여 현황
B3: 연 | C3: 2021 | D3: 2022 | E3: 2022 | F3: 2022 | G3: 2022 | H3: 2022 | I3: 2022 | J3: 2022 | K3: 2022 | L3: 2022 | M3: 2022 | N3: 2022
B4: 월 | C4: 12 | D4: 1 | E4: 2 | F4: 3 | G4: 4 | H4: 5 | I4: 6 | J4: 7 | K4: 8 | L4: 9 | M4: 10 | N4: 11
B5: 수요자원 수(개) | C5: 18 | D5: 18 | E5: 19 | F5: 20 | G5: 21 | H5: 21 | I5: 21 | J5: 23 | K5: 23 | L5: 27 | M5: 28 | N5: 29
B6: 참여고객 수(개) | C6: 3979 | D6: 3979 | E6: 4505 | F6: 4727 | G6: 4898 | H6: 6785 | I6: 6823 | J6: 6959 | K6: 7355 | L6: 8698 | M6: 9502 | N6: 11456
B8: 연 | C8: 2022 | D8: 2023 | E8: 2023 | F8: 2023 | G8: 2023 | H8: 2023 | I8: 2023 | J8: 2023 | K8: 2023 | L8: 2023 | M8: 2023 | N8: 2023
B9: 월 | C9: 12 | D9: 1 | E9: 2 | F9: 3 | G9: 4 | H9: 5 | I9: 6 | J9: 7 | K9: 8 | L9: 9 | M9: 10 | N9: 11
B10: 수요자원 수(개) | C10: 30 | D10: 35 | E10: 35 | F10: 37 | G10: 38 | H10: 38 | I10: 38 | J10: 38 | K10: 49 | L10: 52 | M10: 54 | N10: 54
B11: 참여고객 수(개) | C11: 12711 | D11: 13982 | E11: 14457 | F11: 14834 | G11: 15033 | H11: 15199 | I11: 15524 | J11: 17317 | K11: 18136 | L11: 19602 | M11: 20976 | N11: 20976
B13: 연 | C13: 2023 | D13: 2024 | E13: 2024 | F13: 2024 | G13: 2024 | H13: 2024 | I13: 2024 | J13: 2024 | K13: 2024 | L13: 2024 | M13: 2024 | N13: 2024
B14: 월 | C14: 12 | D14: 1 | E14: 2 | F14: 3 | G14: 4 | H14: 5 | I14: 6 | J14: 7 | K14: 8 | L14: 9 | M14: 10 | N14: 11
B15: 수요자원 수(개) | C15: 54 | D15: 60 | E15: 61 | F15: 63 | G15: 73 | H15: 73 | I15: 78 | J15: 84 | K15: 82 | L15: 83 | M15: 98 | N15: 108
B16: 참여고객 수(개) | C16: 22731 | D16: 24300 | E16: 25053 | F16: 26489 | G16: 36355 | H16: 39485 | I16: 43977 | J16: 49755 | K16: 55071 | L16: 55708 | M16: 57736 | N16: 63713
B18: 연 | C18: 2024 | D18: 2025 | E18: 2025 | F18: 2025 | G18: 2025 | H18: 2025 | I18: 2025 | J18: 2025 | K18: 2025 | L18: 2025 | M18: 2025 | N18: 2025
B19: 월 | C19: 12 | D19: 1 | E19: 2 | F19: 3 | G19: 4 | H19: 5 | I19: 6 | J19: 7 | K19: 8 | L19: 9 | M19: 10 | N19: 11
B20: 수요자원 수(개) | C20: 116 | D20: 137 | E20: 133 | F20: 133 | G20: 135 | H20: 136
B21: 참여고객 수(개) | C21: 65224 | D21: 74598 | E21: 75476 | F21: 75782 | G21: 77780 | H21: 78317
B23: ㅇ 주파수DR 참여 현황
B24: 연 | C24: 2021 | D24: 2022 | E24: 2022 | F24: 2022 | G24: 2022 | H24: 2022 | I24: 2022 | J24: 2022 | K24: 2022 | L24: 2022 | M24: 2022 | N24: 2022
B25: 월 | C25: 12 | D25: 1 | E25: 2 | F25: 3 | G25: 4 | H25: 5 | I25: 6 | J25: 7 | K25: 8 | L25: 9 | M25: 10 | N25: 11
B26: 감축예상용량(MW) | C26: 709.735 | D26: 709.735 | E26: 709.735 | F26: 709.735 | G26: 709.735 | H26: 709.735 | I26: 709.735 | J26: 709.735 | K26: 709.735 | L26: 709.735 | M26: 709.735 | N26: 709.735
B27: 수요자원 수(개) | C27: 34 | D27: 34 | E27: 34 | F27: 34 | G27: 34 | H27: 34 | I27: 34 | J27: 34 | K27: 34 | L27: 34 | M27: 34 | N27: 34
B28: 참여고객 수(개) | C28: 34 | D28: 34 | E28: 34 | F28: 34 | G28: 34 | H28: 34 | I28: 34 | J28: 34 | K28: 34 | L28: 34 | M28: 34 | N28: 34
B30: 연 | C30: 2022 | D30: 2023 | E30: 2023 | F30: 2023 | G30: 2023 | H30: 2023 | I30: 2023 | J30: 2023 | K30: 2023 | L30: 2023 | M30: 2023 | N30: 2023
B31: 월 | C31: 12 | D31: 1 | E31: 2 | F31: 3 | G31: 4 | H31: 5 | I31: 6 | J31: 7 | K31: 8 | L31: 9 | M31: 10 | N31: 11
B32: 1단계 감축예상용량(MW) | C32: 689.564 | D32: 689.564 | E32: 689.564 | F32: 714.386 | G32: 714.386 | H32: 714.386 | I32: 742.181 | J32: 742.181 | K32: 742.181 | L32: 742.181 | M32: 742.181 | N32: 742.181
B33: 1단계 수요자원 수(개) | C33: 43 | D33: 43 | E33: 43 | F33: 50 | G33: 50 | H33: 50 | I33: 51 | J33: 51 | K33: 51 | L33: 51 | M33: 51 | N33: 51
B34: 1단계 참여고객 수(개) | C34: 44 | D34: 44 | E34: 44 | F34: 52 | G34: 52 | H34: 52 | I34: 56 | J34: 56 | K34: 56 | L34: 56 | M34: 56 | N34: 56
B35: 2단계 감축예상용량(MW) | F35: 33.753 | G35: 33.753 | H35: 33.753 | I35: 108.122 | J35: 108.122 | K35: 108.122 | L35: 108.122 | M35: 108.122 | N35: 108.122
B36: 2단계 수요자원 수(개) | F36: 1 | G36: 1 | H36: 1 | I36: 2 | J36: 2 | K36: 2 | L36: 2 | M36: 2 | N36: 2
B37: 2단계 참여고객 수(개) | F37: 2 | G37: 2 | H37: 2 | I37: 4 | J37: 4 | K37: 4 | L37: 4 | M37: 4 | N37: 4
B39: 연 | C39: 2023 | D39: 2024 | E39: 2024 | F39: 2024 | G39: 2024 | H39: 2024 | I39: 2024 | J39: 2024 | K39: 2024 | L39: 2024 | M39: 2024 | N39: 2024
B40: 월 | C40: 12 | D40: 1 | E40: 2 | F40: 3 | G40: 4 | H40: 5 | I40: 6 | J40: 7 | K40: 8 | L40: 9 | M40: 10 | N40: 11
B41: 1단계 감축예상용량(MW) | C41: 728.433 | D41: 728.433 | E41: 728.433 | F41: 728.433 | G41: 728.433 | H41: 728.433 | I41: 728.433 | J41: 728.433 | K41: 728.433 | L41: 728.433 | M41: 728.433 | N41: 728.433
B42: 1단계 수요자원 수(개) | C42: 50 | D42: 50 | E42: 50 | F42: 50 | G42: 50 | H42: 50 | I42: 50 | J42: 50 | K42: 50 | L42: 50 | M42: 50 | N42: 50
B43: 1단계 참여고객 수(개) | C43: 56 | D43: 56 | E43: 56 | F43: 56 | G43: 56 | H43: 56 | I43: 56 | J43: 56 | K43: 56 | L43: 56 | M43: 56 | N43: 56
B44: 2단계 감축예상용량(MW) | C44: 310.991 | D44: 310.991 | E44: 310.991 | F44: 310.991 | G44: 310.991 | H44: 310.991 | I44: 310.991 | J44: 310.991 | K44: 310.991 | L44: 310.991 | M44: 310.991 | N44: 310.991
B45: 2단계 수요자원 수(개) | C45: 22 | D45: 22 | E45: 22 | F45: 22 | G45: 22 | H45: 22 | I45: 22 | J45: 22 | K45: 22 | L45: 22 | M45: 22 | N45: 22
B46: 2단계 참여고객 수(개) | C46: 27 | D46: 27 | E46: 27 | F46: 27 | G46: 27 | H46: 27 | I46: 27 | J46: 27 | K46: 27 | L46: 27 | M46: 27 | N46: 27
B48: 연 | C48: 2024 | D48: 2025 | E48: 2025 | F48: 2025 | G48: 2025 | H48: 2025 | I48: 2025 | J48: 2025 | K48: 2025 | L48: 2025 | M48: 2025 | N48: 2025
B49: 월 | C49: 12 | D49: 1 | E49: 2 | F49: 3 | G49: 4 | H49: 5 | I49: 6 | J49: 7 | K49: 8 | L49: 9 | M49: 10 | N49: 11
B50: 1단계 감축예상용량(MW) | C50: 629.523 | D50: 629.523 | E50: 629.523 | F50: 631.243 | G50: 631.243 | H50: 631.243
B51: 1단계 수요자원 수(개) | C51: 48 | D51: 48 | E51: 48 | F51: 49 | G51: 49 | H51: 49
B52: 1단계 참여고객 수(개) | C52: 56 | D52: 56 | E52: 56 | F52: 59 | G52: 59 | H52: 59
B53: 2단계 감축예상용량(MW) | C53: 254.034 | D53: 254.034 | E53: 254.034 | F53: 254.034 | G53: 254.034 | H53: 254.034
B54: 2단계 수요자원 수(개) | C54: 22 | D54: 22 | E54: 22 | F54: 22 | G54: 22 | H54: 22
B55: 2단계 참여고객 수(개) | C55: 29 | D55: 29 | E55: 29 | F55: 29 | G55: 29 | H55: 29
B57: ㅇ 육지 플러스DR 참여 현황
B58: 연 | C58: 2023 | D58: 2024 | E58: 2024 | F58: 2024 | G58: 2024 | H58: 2024 | I58: 2024 | J58: 2024 | K58: 2024 | L58: 2024 | M58: 2024 | N58: 2024
B59: 월 | C59: 12 | D59: 1 | E59: 2 | F59: 3 | G59: 4 | H59: 5 | I59: 6 | J59: 7 | K59: 8 | L59: 9 | M59: 10 | N59: 11
B60: 증대가능용량(MW) | G60: 1295.174774 | H60: 1295.174774 | I60: 1337.523774 | J60: 1337.523774 | K60: 1337.523774 | L60: 1639.561774 | M60: 1639.561774 | N60: 1639.561774
B61: 수요자원 수(개) | G61: 137 | H61: 137 | I61: 157 | J61: 157 | K61: 157 | L61: 173 | M61: 173 | N61: 173
B62: 참여고객 수(개) | G62: 26209 | H62: 26209 | I62: 26968 | J62: 26968 | K62: 26968 | L62: 32892 | M62: 32892 | N62: 32892
B64: 연 | C64: 2024 | D64: 2025 | E64: 2025 | F64: 2025 | G64: 2025 | H64: 2025 | I64: 2025 | J64: 2025 | K64: 2025 | L64: 2025 | M64: 2025 | N64: 2025
B65: 월 | C65: 12 | D65: 1 | E65: 2 | F65: 3 | G65: 4 | H65: 5 | I65: 6 | J65: 7 | K65: 8 | L65: 9 | M65: 10 | N65: 11
B66: 증대가능용량(MW) | C66: 2793.914 | D66: 2793.914 | E66: 2793.914 | F66: 2827.914 | G66: 2827.914 | H66: 2827.914
B67: 수요자원 수(개) | C67: 162 | D67: 162 | E67: 162 | F67: 165 | G67: 165 | H67: 165
B68: 참여고객 수(개) | C68: 43488 | D68: 43488 | E68: 43488 | F68: 43509 | G68: 43509 | H68: 43509
B70: ㅇ 제주 플러스DR 참여 현황
B71: 연 | C71: 2021 | D71: 2022 | E71: 2022 | F71: 2022 | G71: 2022 | H71: 2022 | I71: 2022 | J71: 2022 | K71: 2022 | L71: 2022 | M71: 2022 | N71: 2022
B72: 월 | C72: 12 | D72: 1 | E72: 2 | F72: 3 | G72: 4 | H72: 5 | I72: 6 | J72: 7 | K72: 8 | L72: 9 | M72: 10 | N72: 11
B73: 수요자원 수(개) | C73: 514 | D73: 514 | E73: 514 | F73: 555 | G73: 555 | H73: 555 | I73: 602 | J73: 602 | K73: 602 | L73: 814 | M73: 814 | N73: 814
B74: 참여고객 수(개) | C74: 965 | D74: 965 | E74: 965 | F74: 1009 | G74: 1009 | H74: 1009 | I74: 1058 | J74: 1058 | K74: 1058 | L74: 1274 | M74: 1274 | N74: 1274
B76: 연 | C76: 2022 | D76: 2023 | E76: 2023 | F76: 2023 | G76: 2023 | H76: 2023 | I76: 2023 | J76: 2023 | K76: 2023 | L76: 2023 | M76: 2023 | N76: 2023
B77: 월 | C77: 12 | D77: 1 | E77: 2 | F77: 3 | G77: 4 | H77: 5 | I77: 6 | J77: 7 | K77: 8 | L77: 9 | M77: 10 | N77: 11
B78: 수요자원 수(개) | C78: 838 | D78: 838 | E78: 838 | F78: 17 | G78: 17 | H78: 17 | I78: 18 | J78: 18 | K78: 18 | L78: 18 | M78: 18 | N78: 18
B79: 참여고객 수(개) | C79: 1279 | D79: 1279 | E79: 1279 | F79: 1289 | G79: 1289 | H79: 1289 | I79: 1289 | J79: 1289 | K79: 1289 | L79: 1289 | M79: 1289 | N79: 1289
B81: 연 | C81: 2023 | D81: 2024 | E81: 2024 | F81: 2024 | G81: 2024 | H81: 2024 | I81: 2024 | J81: 2024 | K81: 2024 | L81: 2024 | M81: 2024 | N81: 2024
B82: 월 | C82: 12 | D82: 1 | E82: 2 | F82: 3 | G82: 4 | H82: 5 | I82: 6 | J82: 7 | K82: 8 | L82: 9 | M82: 10 | N82: 11
B83: 수요자원 수(개) | C83: 23 | D83: 23 | E83: 26 | F83: 26 | G83: 26 | H83: 26 | I83: 29 | J83: 29 | K83: 29 | L83: 30 | M83: 30 | N83: 30
B84: 참여고객 수(개) | C84: 1558 | D84: 1558 | E84: 1662 | F84: 1680 | G84: 1680 | H84: 1680 | I84: 1807 | J84: 1807 | K84: 1807 | L84: 1736 | M84: 1736 | N84: 1736
B86: 연 | C86: 2024 | D86: 2025 | E86: 2025 | F86: 2025 | G86: 2025 | H86: 2025 | I86: 2025 | J86: 2025 | K86: 2025 | L86: 2025 | M86: 2025 | N86: 2025
B87: 월 | C87: 12 | D87: 1 | E87: 2 | F87: 3 | G87: 4 | H87: 5 | I87: 6 | J87: 7 | K87: 8 | L87: 9 | M87: 10 | N87: 11
B88: 수요자원 수(개) | C88: 28 | D88: 28 | E88: 28 | F88: 28 | G88: 28 | H88: 28
B89: 참여고객 수(개) | C89: 1760 | D89: 1760 | E89: 1760 | F89: 1659 | G89: 1659 | H89: 1659

Sheet 월별 가격지표 현황
B2: ㅇ 월별 순편익가격(NBTP) 및 계통한계가격(SMP)(원/kWh)
B3: 연 | C3: 2021 | D3: 2021 | E3: 2021 | F3: 2021 | G3: 2021 | H3: 2021 | I3: 2021 | J3: 2021 | K3: 2021 | L3: 2021 | M3: 2021 | N3: 2021
B4: 월 | C4: 1 | D4: 2 | E4: 3 | F4: 4 | G4: 5 | H4: 6 | I4: 7 | J4: 8 | K4: 9 | L4: 10 | M4: 11 | N4: 12
B5: 육지NBTP | C5: 71.04 | D5: 77.11 | E5: 85.29 | F5: 74.51 | G5: 80.56 | H5: 84.34 | I5: 89.06 | J5: 97.11 | K5: 103.77 | L5: 108.35 | M5: 134.15 | N5: 148.01
B6: 제주NBTP | C6: - | D6: - | E6: - | F6: - | G6: - | H6: - | I6: - | J6: - | K6: - | L6: - | M6: - | N6: -
B7: 육지SMP | C7: 70.47 | D7: 75.25 | E7: 83.78 | F7: 75.97 | G7: 78.93 | H7: 82.72 | I7: 87.04 | J7: 93.41 | K7: 98.21 | L7: 107.53 | M7: 126.83 | N7: 142.46
B8: 제주SMP | C8: 87.75 | D8: 92.84 | E8: 124.79 | F8: 111 | G8: 95.39 | H8: 121.49 | I8: 133.68 | J8: 153.23 | K8: 149.31 | L8: 130.14 | M8: 149.77 | N8: 175.72
B10: 연 | C10: 2022 | D10: 2022 | E10: 2022 | F10: 2022 | G10: 2022 | H10: 2022 | I10: 2022 | J10: 2022 | K10: 2022 | L10: 2022 | M10: 2022 | N10: 2022
B11: 월 | C11: 1 | D11: 2 | E11: 3 | F11: 4 | G11: 5 | H11: 6 | I11: 7 | J11: 8 | K11: 9 | L11: 10 | M11: 11 | N11: 12
B12: 육지NBTP | C12: 166.08 | D12: 216.78 | E12: 197.17 | F12: 210.88 | G12: 141.91 | H12: 134.96 | I12: 161.98 | J12: 217.71 | K12: 252.06 | L12: 270.62 | M12: 263.69 | N12: 279.9
B13: 제주NBTP | C13: - | D13: - | E13: - | F13: - | G13: - | H13: - | I13: - | J13: - | K13: - | L13: - | M13: - | N13: 371.96
B14: 육지SMP | C14: 153.82 | D14: 196.93 | E14: 192.34 | F14: 201.58 | G14: 139.06 | H14: 128.84 | I14: 150.6 | J14: 196.02 | K14: 233.37 | L14: 251.61 | M14: 242.17 | N14: 267.55
B15: 제주SMP | C15: 206.86 | D15: 229.85 | E15: 229.05 | F15: 250.33 | G15: 263.73 | H15: 214.32 | I15: 261.31 | J15: 340.91 | K15: 238.44 | L15: 255.03 | M15: 243.97 | N15: 275.15
B17: 연 | C17: 2023 | D17: 2023 | E17: 2023 | F17: 2023 | G17: 2023 | H17: 2023 | I17: 2023 | J17: 2023 | K17: 2023 | L17: 2023 | M17: 2023 | N17: 2023
B18: 월 | C18: 1 | D18: 2 | E18: 3 | F18: 4 | G18: 5 | H18: 6 | I18: 7 | J18: 8 | K18: 9 | L18: 10 | M18: 11 | N18: 12
B19: 육지NBTP | C19: 262.73 | D19: 266.58 | E19: 246.42 | F19: 178.87 | G19: 164.7 | H19: 159.33 | I19: 166.19 | J19: 156.76 | K19: 154.32 | L19: 163.91 | M19: 138.79 | N19: 155.91
B20: 제주NBTP | C20: 346.7 | D20: 317.22 | E20: 300.47 | F20: 207.89 | G20: 200.49 | H20: 193.91 | I20: 203.36 | J20: 192.23 | K20: 166.47 | L20: 176.29 | M20: 156.15 | N20: 165.35
B21: 육지SMP | C21: 240.73 | D21: 253.48 | E21: 215.87 | F21: 164.87 | G21: 143.64 | H21: 147.12 | I21: 153.39 | J21: 146.91 | K21: 140.93 | L21: 136.73 | M21: 120.82 | N21: 131.05
B22: 제주SMP | C22: 247.55 | D22: 260.27 | E22: 218.2 | F22: 163.87 | G22: 143.07 | H22: 147.71 | I22: 164.72 | J22: 173.17 | K22: 162.46 | L22: 163.17 | M22: 123.37 | N22: 137.04
B24: 연 | C24: 2024 | D24: 2024 | E24: 2024 | F24: 2024 | G24: 2024 | H24: 2024 | I24: 2024 | J24: 2024 | K24: 2024 | L24: 2024 | M24: 2024 | N24: 2024
B25: 월 | C25: 1 | D25: 2 | E25: 3 | F25: 4 | G25: 5 | H25: 6 | I25: 7 | J25: 8 | K25: 9 | L25: 10 | M25: 11 | N25: 12
B26: 육지NBTP | C26: 174 | D26: 156.32 | E26: 158.56 | F26: 146.96 | G26: 142.16 | H26: 138.26 | I26: 141.12 | J26: 145.53 | K26: 147.71 | L26: 143.32 | M26: 140.3 | N26: 146.94
B27: 제주NBTP | C27: 179.38 | D27: 165.15 | E27: 156.22 | F27: 148.8 | G27: 138.07 | H27: 137.13 | I27: 152.41 | J27: 164.08 | K27: 161.53 | L27: 156 | M27: 138.18 | N27: 153.14
B28: 육지SMP | C28: 137.91 | D28: 119.49 | E28: 134.4 | F28: 125.9 | G28: 126.35 | H28: 125.99 | I28: 132.46 | J28: 146.21 | K28: 138.78 | L28: 117.2 | M28: 112.26 | N28: 116.58
B29: 제주SMP | C29: 150.67 | D29: 122.34 | E29: 140.61 | F29: 141.72 | G29: 127.09 | H29: 126.41 | I29: 135.55 | J29: 152.02 | K29: 145.1 | L29: 120.62 | M29: 108.66 | N29: 118.18
B31: 연 | C31: 2025 | D31: 2025 | E31: 2025 | F31: 2025 | G31: 2025 | H31: 2025 | I31: 2025 | J31: 2025 | K31: 2025 | L31: 2025 | M31: 2025 | N31: 2025
B32: 월 | C32: 1 | D32: 2 | E32: 3 | F32: 4 | G32: 5 | H32: 6 | I32: 7 | J32: 8 | K32: 9 | L32: 10 | M32: 11 | N32: 12
B33: 육지NBTP | C33: 141.58 | D33: 136.79 | E33: 134.74
B34: 제주NBTP | C34: 152.33 | D34: 144.76 | E34: 141.71
B35: 육지SMP | C35: 117.11 | D35: 116.39 | E35: 113.12
B36: 제주SMP | C36: 118.9 | D36: 116.05 | E36: 105.57
B38: ㅇ 월별 기본정산금 단가
B39: 연 | C39: 2021 | D39: 2021 | E39: 2021 | F39: 2021 | G39: 2021 | H39: 2021 | I39: 2021 | J39: 2021 | K39: 2021 | L39: 2021 | M39: 2021 | N39: 2021
B40: 월 | C40: 1 | D40: 2 | E40: 3 | F40: 4 | G40: 5 | H40: 6 | I40: 7 | J40: 8 | K40: 9 | L40: 10 | M40: 11 | N40: 12
B41: 표준DR(원/kW-월) | C41: 4750.8 | D41: 2863.62 | E41: 853.6 | F41: 502.92 | G41: 421.8 | H41: 997.04 | I41: 3862.98 | J41: 4810.26 | K41: 1502.14 | L41: 463.79 | M41: 1671.34 | N41: 5132.68
B42: 중소형DR(원/kW-월) | C42: 5807.6 | D42: 3500.82 | E42: 1043.24 | F42: 613.8 | G42: 514.9 | H42: 1218.58 | I42: 4725.16 | J42: 5883.15 | K42: 1837.68 | L42: 566.39 | M42: 2044.9 | N42: 6277.85
B43: 국민DR(원/kWh) | C43: 56347.39 | D43: 56347.39 | E43: 56347.39 | F43: 56347.39 | G43: 56347.39 | H43: 56347.39 | I43: 57315.32 | J43: 57315.32 | K43: 57315.32 | L43: 57335.15 | M43: 57335.15 | N43: 59644.35
B44: 주파수DR(원/kW-10m) | C44: 33772.5 | D44: 33772.5 | E44: 33772.5 | F44: 33772.5 | G44: 33772.5 | H44: 33772.5 | I44: 33676.11 | J44: 33676.11 | K44: 33676.11 | L44: 33698.07 | M44: 33698.07 | N44: 31108.95
B46: 연 | C46: 2022 | D46: 2022 | E46: 2022 | F46: 2022 | G46: 2022 | H46: 2022 | I46: 2022 | J46: 2022 | K46: 2022 | L46: 2022 | M46: 2022 | N46: 2022
B47: 월 | C47: 1 | D47: 2 | E47: 3 | F47: 4 | G47: 5 | H47: 6 | I47: 7 | J47: 8 | K47: 9 | L47: 10 | M47: 11 | N47: 12
B48: 표준/중소형DR(원/kW-월) | C48: 4599 | D48: 2723.4 | E48: 748.02 | F48: 473.76 | G48: 459.9 | H48: 941.6 | I48: 4355.4 | J48: 5541.58 | K48: 1900.2 | L48: 487.92 | M48: 1246.08 | N48: 4343.9
B49: 제주DR(원/kW-월) | C49: - | D49: - | E49: - | F49: - | G49: - | H49: - | I49: - | J49: - | K49: - | L49: - | M49: - | N49: 4834.5
B50: 국민DR(육지)(원/kWh) | C50: 58632.58 | D50: 58632.58 | E50: 58632.58 | F50: 58632.58 | G50: 58632.58 | H50: 58632.58 | I50: 63502.27 | J50: 63502.27 | K50: 63502.27 | L50: 63502.27 | M50: 63502.27 | N50: 63115.51
B51: 국민DR(제주)(원/kWh) | C51: - | D51: - | E51: - | F51: - | G51: - | H51: - | I51: - | J51: - | K51: - | L51: - | M51: - | N51: 64575.87
B52: 주파수DR(원/kW-10m) | C52: 31108.95 | D52: 31108.95 | E52: 31108.95 | F52: 31108.95 | G52: 31108.95 | H52: 31108.95 | I52: 32485.95 | J52: 32485.95 | K52: 32485.95 | L52: 32485.95 | M52: 32485.95 | N52: 33211.35
B54: 연 | C54: 2023 | D54: 2023 | E54: 2023 | F54: 2023 | G54: 2023 | H54: 2023 | I54: 2023 | J54: 2023 | K54: 2023 | L54: 2023 | M54: 2023 | N54: 2023
B55: 월 | C55: 1 | D55: 2 | E55: 3 | F55: 4 | G55: 5 | H55: 6 | I55: 7 | J55: 8 | K55: 9 | L55: 10 | M55: 11 | N55: 12
B56: 표준/중소형DR(원/kW-월) | C56: 2943 | D56: 2475.8 | E56: 1212.86 | F56: 385.8 | G56: 445.83 | H56: 1657.74 | I56: 3714.9 | J56: 4017.64 | K56: 2171.7 | L56: 645.62 | M56: 1921.48 | N56: 3843.4
B57: 제주DR(원/kW-월) | C57: 3583.4 | D57: 2902.8 | E57: 1299.1 | F57: 479.6 | G57: 549.78 | H57: 1968.33 | I57: 4521.93 | J57: 4955.28 | K57: 2535.93 | L57: 817.2 | M57: 2054.58 | N57: 4542.8
B58: 국민DR(육지)(원/kWh) | C58: 66055.85 | D58: 66055.85 | E58: 66055.85 | F58: 66055.85 | G58: 65993.27 | H58: 65993.27 | I58: 67659.4 | J58: 67659.4 | K58: 67566.85 | L58: 67566.85 | M58: 67566.85 | N58: 67566.85
B59: 국민DR(제주)(원/kWh) | C59: 70847.34 | D59: 70847.34 | E59: 70847.34 | F59: 70847.34 | G59: 70776.41 | H59: 70776.41 | I59: 76312.16 | J59: 76312.16 | K59: 76208.01 | L59: 76208.01 | M59: 76208.01 | N59: 76208.01
B60: 주파수DR(원/kW-10m) | C60: 33211.35 | D60: 33211.35 | E60: 33211.35 | F60: 33211.35 | G60: 33211.35 | H60: 33211.35 | I60: 35924.04 | J60: 35924.04 | K60: 35924.04 | L60: 35924.04 | M60: 35924.04 | N60: 39791.52
B62: 연 | C62: 2024 | D62: 2024 | E62: 2024 | F62: 2024 | G62: 2024 | H62: 2024 | I62: 2024 | J62: 2024 | K62: 2024 | L62: 2024 | M62: 2024 | N62: 2024
B63: 월 | C63: 1 | D63: 2 | E63: 3 | F63: 4 | G63: 5 | H63: 6 | I63: 7 | J63: 8 | K63: 9 | L63: 10 | M63: 11 | N63: 12
B64: 표준/중소형DR(원/kW-월) | C64: 3062.4 | D64: 2352.96 | E64: 1383.2 | F64: 668.85 | G64: 766.71 | H64: 2013.81 | I64: 3424.7 | J64: 3166.8 | K64: 2086.92 | L64: 1063.4 | M64: 1826.16 | N64: 3246.6
B65: 제주DR(원/kW-월) | C65: 3774.98 | D65: 2842.78 | E65: 1580.8 | F65: 783.51 | G65: 911.19 | H65: 2447.39 | I65: 4285.36 | J65: 3963.54 | K65: 2557.98 | L65: 1260.8 | M65: 2079 | N65: 4025.91
B66: 국민DR(육지)(원/kWh) | C66: 71306.25 | D66: 71306.25 | E66: 71306.25 | F66: 71306.25 | G66: 71306.25 | H66: 71306.25 | I66: 70588.03 | J66: 70588.03 | K66: 70588.03 | L66: 70499.09 | M66: 70499.09 | N66: 70499.09
B67: 국민DR(제주)(원/kWh) | C67: 80247.6 | D67: 80247.6 | E67: 80247.6 | F67: 80247.6 | G67: 80247.6 | H67: 80247.6 | I67: 80020.12 | J67: 80020.12 | K67: 80020.12 | L67: 79861.83 | M67: 79861.83 | N67: 79861.83
B68: 주파수DR(원/kW-10m) | C68: 39791.52 | D68: 39791.52 | E68: 39791.52 | F68: 39791.52 | G68: 39791.52 | H68: 39791.52 | I68: 40576.41 | J68: 40576.41 | K68: 40576.41 | L68: 40576.41 | M68: 40576.41 | N68: 41555.25
B70: 연 | C70: =C62+1 -> 2025 | D70: =D62+1 -> 2025 | E70: 2025 | F70: 2025 | G70: 2025 | H70: 2025 | I70: 2025 | J70: 2025 | K70: 2025 | L70: 2025 | M70: 2025 | N70: 2025
B71: 월 | C71: 1 | D71: 2 | E71: 3 | F71: 4 | G71: 5 | H71: 6 | I71: 7 | J71: 8 | K71: 9 | L71: 10 | M71: 11 | N71: 12
B72: 표준/중소형DR(원/kW-월) | C72: 2348.64 | D72: 2276.4 | E72: 1674.4
B73: 제주DR(원/kW-월) | C73: 2928.42 | D73: 2773.2 | E73: 1986.8
B74: 국민DR(육지)(원/kWh) | C74: 71220.15 | D74: 70820 | E74: 70820
B75: 국민DR(제주)(원/kWh) | C75: 81142.08 | D75: 80686.23 | E75: 80686.23
B76: 주파수DR(원/kW-10m) | C76: 41555.25 | D76: 41555.25 | E76: 41555.25

Sheet 월별 감축 및 증대 실적
B2: ㅇ 신뢰성DR 감축실적
B3: 차수 | C3: 연 | D3: 월 | E3: 일 | F3: 감축요청량(MWh) | G3: 감축이행량(MWh) | H3: 이행률(%) | I3: 비 고
B4: 7 | C4: 2020 | D4: 12 | E4: 9 | F4: 4499.344 | G4: 5024.906 | H4: =G4/F4*100 -> 111.6808584 | I4: 감축시험
B5: 7 | C5: 2020 | D5: 12 | E5: 22 | F5: 95.762 | G5: 102.341 | H5: =G5/F5*100 -> 106.8701573 | I5: 감축재시험
B6: 7 | C6: 2021 | D6: 6 | E6: 8 | F6: 4695.325 | G6: 5331.635 | H6: 113.5519905 | I6: 감축시험
B7: 7 | C7: 2021 | D7: 6 | E7: 22 | F7: 451.2 | G7: 418.405 | H7: 92.73160461 | I7: 감축재시험
B8: 8 | C8: 2021 | D8: 12 | E8: 7 | F8: 4552.934 | G8: 5048.567 | H8: 110.8860133 | I8: 감축시험
B9: 8 | C9: 2021 | D9: 12 | E9: 20 | F9: 33.602 | G9: 30.917 | H9: 92.0094042 | I9: 감축재시험
B10: 8 | C10: 2021 | D10: 12 | E10: 21 | F10: 422.03 | G10: 456.187 | H10: 108.0935005 | I10: 감축재시험
B11: 8 | C11: 2022 | D11: 6 | E11: 8 | F11: 4923.538 | G11: 5748.986 | H11: 116.7653423 | I11: 감축시험
B12: 8 | C12: 2022 | D12: 6 | E12: 22 | F12: 359.243 | G12: 348.405 | H12: 96.98310058 | I12: 감축재시험
B13: 9 | C13: 2022 | D13: 12 | E13: 2 | F13: 4421.472 | G13: 4974.637 | H13: 112.5108787 | I13: 감축시험
B14: 9 | C14: 2022 | D14: 12 | E14: 19 | F14: 221.728 | G14: 246.422 | H14: 111.1370688 | I14: 감축재시험
B15: 9 | C15: 2023 | D15: 6 | E15: 7 | F15: 2493.101 | G15: 2879.568 | H15: =G15/F15*100 -> 115.5014578 | I15: 감축시험
B16: 9 | C16: 2023 | D16: 6 | E16: 8 | F16: 2419.187 | G16: 2804.538 | H16: 115.9289464 | I16: 감축시험
B17: 9 | C17: 2023 | D17: 6 | E17: 20 | F17: 470.239 | G17: 474.279 | H17: 100.8591376 | I17: 감축재시험
B18: 10 | C18: 2023 | D18: 12 | E18: 5 | F18: 2260.097 | G18: 2602.802 | H18: =G18/F18*100 -> 115.1632872 | I18: 감축시험
B19: 10 | C19: 2023 | D19: 12 | E19: 6 | F19: 2294.557 | G19: 2718.236 | H19: =G19/F19*100 -> 118.4645228 | I19: 감축시험
B20: 10 | C20: 2023 | D20: 12 | E20: 20 | F20: 31.7 | G20: 31.995 | H20: 100.9305994 | I20: 감축재시험
B21: 10 | C21: 2024 | D21: 1 | E21: 23 | F21: 2250.547 | G21: 2154.074 | H21: 95.71335324 | I21: 감축신뢰성시험
B22: 10 | C22: 2024 | D22: 1 | E22: 24 | F22: 2286.657 | G22: 2406.53 | H22: 105.2422816 | I22: 감축신뢰성시험
B23: 10 | C23: 2024 | D23: 6 | E23: 10 | F23: 2329.575 | G23: 2518.774 | H23: 108.1216102 | I23: 감축시험
B24: 10 | C24: 2024 | D24: 6 | E24: 11 | F24: 2299.858 | G24: 2519.409 | H24: 109.546285 | I24: 감축시험
B25: 10 | C25: 2024 | D25: 6 | E25: 20 | F25: 53.851 | G25: 47.584 | H25: 88.3623331 | I25: 감축재시험
B26: 10 | C26: 2024 | D26: 8 | E26: 7 | F26: 32.311 | G26: 28.494 | H26: 88.18668565 | I26: 감축신뢰성시험
B27: 10 | C27: 2024 | D27: 8 | E27: 8 | F27: 2263.08 | G27: 2403.792 | H27: 106.217721 | I27: 감축신뢰성시험
B28: 10 | C28: 2024 | D28: 8 | E28: 12 | F28: 2259.842 | G28: 2301.88 | H28: 101.8602185 | I28: 감축신뢰성시험
B29: 10 | C29: 2024 | D29: 8 | E29: 13 | F29: 705.37 | G29: 672.47 | H29: 95.33578122
B30: 10 | C30: 2024 | D30: 8 | E30: 20 | F30: 913.378 | G30: 773.955 | H30: 84.73545454
B31: 10 | C31: 2024 | D31: 9 | E31: 19 | F31: 5117.439 | G31: 5785.304 | H31: =G31/F31*100 -> 113.0507662
B32: 11 | C32: 2024 | D32: 12 | E32: 4 | F32: 2116.873 | G32: 2304.888 | H32: 108.8817326 | I32: 감축시험
B33: 11 | C33: 2024 | D33: 12 | E33: 5 | F33: 2081.418 | G33: 2227.376 | H33: 107.0124309 | I33: 감축시험
B34: 11 | C34: 2024 | D34: 12 | E34: 16 | F34: 15 | G34: 14.98 | H34: 99.86666667 | I34: 감축재시험
B35: 11 | C35: 2025 | D35: 1 | E35: 15 | F35: 2055.517 | G35: 2061.6 | H35: 100.2959353 | I35: 감축신뢰성시험
B36: 11 | C36: 2025 | D36: 1 | E36: 16 | F36: 2114.84 | G36: 2145.18 | H36: 101.4346239 | I36: 감축신뢰성시험
B38: ㅇ 자발적DR 감축실적
B39: 차수 | C39: 7 | D39: 7 | E39: 7 | F39: 7 | G39: 7 | H39: 7 | I39: 7 | J39: 7 | K39: 7 | L39: 7 | M39: 7 | N39: 7 | O39: 7
B40: 연 | C40: 2020 | D40: 2021 | E40: 2021 | F40: 2021 | G40: 2021 | H40: 2021 | I40: 2021 | J40: 2021 | K40: 2021 | L40: 2021 | M40: 2021 | N40: 2021 | O40: 합 계
B41: 월 | C41: 12 | D41: 1 | E41: 2 | F41: 3 | G41: 4 | H41: 5 | I41: 6 | J41: 7 | K41: 8 | L41: 9 | M41: 10 | N41: 11
B42: 입찰량(MWh) | C42: 82604 | D42: 40950 | E42: 44624 | F42: 55559 | G42: 43829 | H42: 55307 | I42: 65664 | J42: 64552 | K42: 102946 | L42: 69340 | M42: 66018 | N42: 54854 | O42: =SUM(C42:N42) -> 746247
B43: 낙찰량(MWh) | C43: 34971.713 | D43: 15913.058 | E43: 12225.572 | F43: 12938.3 | G43: 27391 | H43: 31050 | I43: 33940 | J43: 34889.7 | K43: 27622 | L43: 33419 | M43: 39140 | N43: 11046 | O43: =SUM(C43:N43) -> 314546.343
B44: 감축량(MWh) | C44: 53220.054 | D44: 22477.291 | E44: 19306.68 | F44: 21333.312 | G44: 47427.513 | H44: 51359.423 | I44: 52682.112 | J44: 55036.646 | K44: 40413.181 | L44: 53375.541 | M44: 59501.409 | N44: 18100.87 | O44: 494234.032
B45: 이행률(%) | C45: =C44/C43*100 -> 152.1802893 | D45: =D44/D43*100 -> 141.2506069 | E45: 157.9204638 | F45: 164.8849694 | G45: 173.1499872 | H45: 165.4087697 | I45: 155.2213082 | J45: 157.7446811 | K45: 146.3079466 | L45: 159.7161525 | M45: 152.0219954 | N45: 163.868097 | O45: 157.1259825
B47: 차수 | C47: 8 | D47: 8 | E47: 8 | F47: 8 | G47: 8 | H47: 8 | I47: 8 | J47: 8 | K47: 8 | L47: 8 | M47: 8 | N47: 8 | O47: 8
B48: 연 | C48: 2021 | D48: 2022 | E48: 2022 | F48: 2022 | G48: 2022 | H48: 2022 | I48: 2022 | J48: 2022 | K48: 2022 | L48: 2022 | M48: 2022 | N48: 2022 | O48: 합 계
B49: 월 | C49: 12 | D49: 1 | E49: 2 | F49: 3 | G49: 4 | H49: 5 | I49: 6 | J49: 7 | K49: 8 | L49: 9 | M49: 10 | N49: 11
B50: 입찰량(MWh) | C50: 73411 | D50: 41737 | E50: 66762 | F50: 58690 | G50: 50563 | H50: 76949 | I50: 84205 | J50: 82595 | K50: 139798 | L50: 74604.7 | M50: 74325.8 | N50: 70575.4 | O50: =SUM(C50:N50) -> 894215.9
B51: 낙찰량(MWh) | C51: 18870 | D51: 6402.4 | E51: 11270 | F51: 12535 | G51: 5436 | H51: 26970 | I51: 21185 | J51: 8582 | K51: 42789 | L51: 9290.708 | M51: 8003.157 | N51: 4989.405 | O51: =SUM(C51:N51) -> 176322.67
B52: 감축량(MWh) | C52: 29282.24 | D52: 9215.756 | E52: 16857.351 | F52: 22307.524 | G52: 9641.667 | H52: 43134.995 | I52: 33865.103 | J52: 13157.735 | K52: 66370.474 | L52: 13768.437 | M52: 11848.902 | N52: 8313.881 | O52: 277764.065
B53: 이행률(%) | C53: =C52/C51*100 -> 155.1788023 | D53: =D52/D51*100 -> 143.9422092 | E53: =E52/E51*100 -> 149.577205 | F53: =F52/F51*100 -> 177.9618987 | G53: =G52/G51*100 -> 177.3669426 | H53: =H52/H51*100 -> 159.9369485 | I53: =I52/I51*100 -> 159.8541562 | J53: =J52/J51*100 -> 153.3178164 | K53: =K52/K51*100 -> 155.1110659 | L53: =L52/L51*100 -> 148.195778 | M53: =M52/M51*100 -> 148.0528496 | N53: =N52/N51*100 -> 166.6307105 | O53: 157.5316804
B55: 차수 | C55: 9 | D55: 9 | E55: 9 | F55: 9 | G55: 9 | H55: 9 | I55: 9 | J55: 9 | K55: 9 | L55: 9 | M55: 9 | N55: 9 | O55: 9
B56: 연 | C56: 2022 | D56: 2023 | E56: 2023 | F56: 2023 | G56: 2023 | H56: 2023 | I56: 2023 | J56: 2023 | K56: 2023 | L56: 2023 | M56: 2023 | N56: 2023 | O56: 합 계
B57: 월 | C57: 12 | D57: 1 | E57: 2 | F57: 3 | G57: 4 | H57: 5 | I57: 6 | J57: 7 | K57: 8 | L57: 9 | M57: 10 | N57: 11
B58: 입찰량(MWh) | C58: 81310.9 | D58: 68484.2 | E58: 64740.1 | F58: 80889.7 | G58: 79244.7 | H58: 81343.2 | I58: 104981.4 | J58: 110246.3 | K58: 122059.1 | L58: 65229.2 | M58: 89740.3 | N58: 110113.7 | O58: =SUM(C58:N58) -> 1058382.8
B59: 낙찰량(MWh) | C59: 29013.756 | D59: 23218.698 | E59: 21683.2 | F59: 10638.8 | G59: 4572 | H59: 5171.94 | I59: 9686.558 | J59: 14988.017 | K59: 24546 | L59: 8716.648 | M59: 4244 | N59: 12584.552 | O59: =SUM(C59:N59) -> 169064.169
B60: 감축량(MWh) | C60: 43360.948 | D60: 34433.662 | E60: 32172.011 | F60: 17679.377 | G60: 7757.247 | H60: 8709.178 | I60: 16532.455 | J60: 21663.011 | K60: 36476.164 | L60: 13736.435 | M60: 5874.826 | N60: 19541.876 | O60: 257937.19
B61: 이행률(%) | C61: =C60/C59*100 -> 149.4496197 | D61: 148.3014336 | E61: 148.3729846 | F61: 166.1783002 | G61: 169.6685696 | H61: 168.3928661 | I61: 170.6741961 | J61: 144.535538 | K61: 148.6032918 | L61: 157.5885019 | M61: 138.4266258 | N61: 155.2846379 | O61: =O60/O59*100 -> 152.5676266
B63: 차수 | C63: 10 | D63: 10 | E63: 10 | F63: 10 | G63: 10 | H63: 10 | I63: 10 | J63: 10 | K63: 10 | L63: 10 | M63: 10 | N63: 10 | O63: 10
B64: 연 | C64: 2023 | D64: 2024 | E64: 2024 | F64: 2024 | G64: 2024 | H64: 2024 | I64: 2024 | J64: 2024 | K64: 2024 | L64: 2024 | M64: 2024 | N64: 2024 | O64: 합 계
B65: 월 | C65: 12 | D65: 1 | E65: 2 | F65: 3 | G65: 4 | H65: 5 | I65: 6 | J65: 7 | K65: 8 | L65: 9 | M65: 10 | N65: 11
B66: 입찰량(MWh) | C66: 88926.4 | D66: 70852.9 | E66: 74577.6 | F66: 85063.4 | G66: 85046.8 | H66: 83446 | I66: 92473.5 | J66: 107146.9 | K66: 95443.4 | L66: 65446.4 | M66: 85012.1 | N66: 83472.9 | O66: =SUM(C66:N66) -> 1016908.3
B67: 낙찰량(MWh) | C67: 13857.723 | D67: 14371.6 | E67: 11990.1 | F67: 7788.62 | G67: 8111 | H67: 7157.666 | I67: 13516.023 | J67: 21510.095 | K67: 35383.989 | L67: 18168.467 | M67: 5054 | N67: 1490 | O67: =SUM(C67:N67) -> 158399.283
B68: 감축량(MWh) | C68: 19953.124 | D68: 23384.041 | E68: 18766.01 | F68: 11996.709 | G68: 13133.05 | H68: 11419.835 | I68: 19276.163 | J68: 30826.818 | K68: 51860.799 | L68: 27842.901 | M68: 7845.528 | N68: 2745.026 | O68: 239050.004
B69: 이행률(%) | C69: 143.9855884 | D69: 162.710074 | E69: 156.5125395 | F69: 154.0286854 | G69: 161.9165331 | H69: 159.546911 | I69: 142.6171219 | J69: 143.3132583 | K69: 146.5657221 | L69: 153.2484882 | M69: 155.2340324 | N69: 184.2299329 | O69: =O68/O67*100 -> 150.9160897
B71: 차수 | C71: 11 | D71: 11 | E71: 11 | F71: 11 | G71: 11 | H71: 11 | I71: 11 | J71: 11 | K71: 11 | L71: 11 | M71: 11 | N71: 11 | O71: 11
B72: 연 | C72: 2024 | D72: 2025 | E72: 2025 | F72: 2025 | G72: 2025 | H72: 2025 | I72: 2025 | J72: 2025 | K72: 2025 | L72: 2025 | M72: 2025 | N72: 2025 | O72: 합 계
B73: 월 | C73: 12 | D73: 1 | E73: 2 | F73: 3 | G73: 4 | H73: 5 | I73: 6 | J73: 7 | K73: 8 | L73: 9 | M73: 10 | N73: 11
B74: 입찰량(MWh) | C74: 93508.5 | D74: 74458.2 | E74: 87793.8 | F74: 108224.7 | O74: =SUM(C74:N74) -> 363985.2
B75: 낙찰량(MWh) | C75: 4264.629 | D75: 15169.297 | E75: 5177 | F75: 20894.8 | O75: 45505.726
B76: 감축량(MWh) | C76: 6359.714 | D76: 21131.977 | E76: 7070.404 | F76: 33993.656 | O76: 68555.751
B77: 이행률(%) | C77: 149.1270167 | D77: 139.3075566 | E77: 136.5733823 | F77: 162.6895496 | O77: =O76/O75*100 -> 150.6530211
B79: ㅇ 국민DR 감축실적
B80: 연 | C80: 2020 | D80: 2021 | E80: 2021 | F80: 2021 | G80: 2021 | H80: 2021 | I80: 2021 | J80: 2021 | K80: 2021 | L80: 2021 | M80: 2021 | N80: 2021 | O80: 합 계
B81: 월 | C81: 12 | D81: 1 | E81: 2 | F81: 3 | G81: 4 | H81: 5 | I81: 6 | J81: 7 | K81: 8 | L81: 9 | M81: 10 | N81: 11
B82: 감축량(kWh) | C82: 290 | D82: 153 | E82: 99 | F82: 174 | G82: 104 | H82: 87 | I82: 26 | J82: 11 | K82: 114 | L82: 55 | M82: 75 | N82: 109 | O82: =SUM(C82:N82) -> 1297
B84: 연 | C84: =C80+1 -> 2021 | D84: =D80+1 -> 2022 | E84: 2022 | F84: 2022 | G84: 2022 | H84: 2022 | I84: 2022 | J84: 2022 | K84: 2022 | L84: 2022 | M84: 2022 | N84: 2022 | O84: 합 계
B85: 월 | C85: 12 | D85: 1 | E85: 2 | F85: 3 | G85: 4 | H85: 5 | I85: 6 | J85: 7 | K85: 8 | L85: 9 | M85: 10 | N85: 11
B86: 감축량(kWh) | C86: 523 | D86: 361 | E86: 230 | F86: 680 | G86: 989 | H86: 431 | I86: 31 | J86: 410 | K86: 589 | L86: 488 | M86: 144 | N86: 1171 | O86: =SUM(C86:N86) -> 6047
B88: 연 | C88: =C84+1 -> 2022 | D88: =D84+1 -> 2023 | E88: 2023 | F88: 2023 | G88: 2023 | H88: 2023 | I88: 2023 | J88: 2023 | K88: 2023 | L88: 2023 | M88: 2023 | N88: 2023 | O88: 합 계
B89: 월 | C89: 12 | D89: 1 | E89: 2 | F89: 3 | G89: 4 | H89: 5 | I89: 6 | J89: 7 | K89: 8 | L89: 9 | M89: 10 | N89: 11
B90: 감축량(kWh) | C90: 953 | D90: 3376 | E90: 3745 | F90: 6677 | G90: 3077 | H90: 1269 | I90: 403 | J90: 487 | K90: 2301 | L90: 461 | M90: 360 | N90: 1373 | O90: =SUM(C90:N90) -> 24482
B92: 연 | C92: =C88+1 -> 2023 | D92: =D88+1 -> 2024 | E92: 2024 | F92: 2024 | G92: 2024 | H92: 2024 | I92: 2024 | J92: 2024 | K92: 2024 | L92: 2024 | M92: 2024 | N92: 2024 | O92: 합 계
B93: 월 | C93: 12 | D93: 1 | E93: 2 | F93: 3 | G93: 4 | H93: 5 | I93: 6 | J93: 7 | K93: 8 | L93: 9 | M93: 10 | N93: 11
B94: 감축량(kWh) | C94: 5848 | D94: 11342 | E94: 5633 | F94: 5458 | G94: 8115 | H94: 1313 | I94: 1806 | J94: 6361 | K94: 59600 | L94: 2908 | M94: 8944 | N94: 7430 | O94: =SUM(C94:N94) -> 124758
B96: 연 | C96: 2024 | D96: 2025 | E96: 2025 | F96: 2025 | G96: 2025 | H96: 2025 | I96: 2025 | J96: 2025 | K96: 2025 | L96: 2025 | M96: 2025 | N96: 2025 | O96: 합 계
B97: 월 | C97: 12 | D97: 1 | E97: 2 | F97: 3 | G97: 4 | H97: 5 | I97: 6 | J97: 7 | K97: 8 | L97: 9 | M97: 10 | N97: 11
B98: 감축량(kWh) | C98: 23238 | D98: 115945 | E98: 80743 | F98: 238293 | O98: =SUM(C98:N98) -> 458219
B100: ㅇ 주파수DR 감축실적
B101: 연 | C101: 2020 | D101: 2021 | E101: 2021 | F101: 2021 | G101: 2021 | H101: 2021 | I101: 2021 | J101: 2021 | K101: 2021 | L101: 2021 | M101: 2021 | N101: 2021 | O101: 합 계
B102: 월 | C102: 12 | D102: 1 | E102: 2 | F102: 3 | G102: 4 | H102: 5 | I102: 6 | J102: 7 | K102: 8 | L102: 9 | M102: 10 | N102: 11
B103: 감축량(MWh) | C103: 0 | D103: 0 | E103: 0 | F103: 138.306 | G103: 118.703 | H103: 314.988 | I103: 0 | J103: 0 | K103: 0 | L103: 0 | M103: 0 | N103: 0 | O103: =SUM(C103:N103) -> 571.997
B105: 연 | C105: =C101+1 -> 2021 | D105: 2022 | E105: 2022 | F105: 2022 | G105: 2022 | H105: 2022 | I105: 2022 | J105: 2022 | K105: 2022 | L105: 2022 | M105: 2022 | N105: 2022 | O105: 합 계
B106: 월 | C106: 12 | D106: 1 | E106: 2 | F106: 3 | G106: 4 | H106: 5 | I106: 6 | J106: 7 | K106: 8 | L106: 9 | M106: 10 | N106: 11
B107: 감축량(MWh) | C107: 0 | D107: 0 | E107: 0 | F107: 0 | G107: 258.222 | H107: 0 | I107: 0 | J107: 0 | K107: 0 | L107: 139.656 | M107: 0 | N107: 0 | O107: =SUM(C107:N107) -> 397.878
B109: 연 | C109: =C105+1 -> 2022 | D109: =D105+1 -> 2023 | E109: 2023 | F109: 2023 | G109: 2023 | H109: 2023 | I109: 2023 | J109: 2023 | K109: 2023 | L109: 2023 | M109: 2023 | N109: 2023 | O109: 합 계
B110: 월 | C110: 12 | D110: 1 | E110: 2 | F110: 3 | G110: 4 | H110: 5 | I110: 6 | J110: 7 | K110: 8 | L110: 9 | M110: 10 | N110: 11
B111: 감축량(MWh) | C111: 0 | D111: 0 | E111: 0 | F111: 0 | G111: 0 | H111: 0 | I111: 0 | J111: 0 | K111: - | L111: 0 | M111: 0 | N111: 0 | O111: =SUM(C111:N111) -> 0
B113: 연 | C113: =C109+1 -> 2023 | D113: =D109+1 -> 2024 | E113: 2024 | F113: 2024 | G113: 2024 | H113: 2024 | I113: 2024 | J113: 2024 | K113: 2024 | L113: 2024 | M113: 2024 | N113: 2024 | O113: 합 계
B114: 월 | C114: 12 | D114: 1 | E114: 2 | F114: 3 | G114: 4 | H114: 5 | I114: 6 | J114: 7 | K114: 8 | L114: 9 | M114: 10 | N114: 11
B115: 감축량(MWh) | C115: 0 | D115: 0 | E115: 0 | F115: 162.484 | G115: 0 | H115: 0 | I115: 0 | J115: 3.814 | K115: 0 | L115: 0 | M115: 0 | N115: 0 | O115: =SUM(C115:N115) -> 166.298
B117: 연 | C117: 2024 | D117: 2025 | E117: 2025 | F117: 2025 | G117: 2025 | H117: 2025 | I117: 2025 | J117: 2025 | K117: 2025 | L117: 2025 | M117: 2025 | N117: 2025 | O117: 합 계
B118: 월 | C118: 12 | D118: 1 | E118: 2 | F118: 3 | G118: 4 | H118: 5 | I118: 6 | J118: 7 | K118: 8 | L118: 9 | M118: 10 | N118: 11
B119: 감축량(MWh) | C119: 0 | D119: 0 | E119: 0 | F119: 0 | O119: =SUM(C119:N119) -> 0
B121: ㅇ 육지 플러스DR 증대실적
B122: 연 | C122: 2023 | D122: 2024 | E122: 2024 | F122: 2024 | G122: 2024 | H122: 2024 | I122: 2024 | J122: 2024 | K122: 2024 | L122: 2024 | M122: 2024 | N122: 2024 | O122: 합 계
B123: 월 | C123: 12 | D123: 1 | E123: 2 | F123: 3 | G123: 4 | H123: 5 | I123: 6 | J123: 7 | K123: 8 | L123: 9 | M123: 10 | N123: 11
B124: 증대량(MWh) | G124: 2124.948 | H124: 2926.722 | I124: 203.051 | J124: 0 | K124: 0 | L124: 0 | M124: 1932.282 | N124: 0 | O124: =SUM(C124:N124) -> 7187.003
B126: 연 | C126: 2024 | D126: 2025 | E126: 2025 | F126: 2025 | G126: 2025 | H126: 2025 | I126: 2025 | J126: 2025 | K126: 2025 | L126: 2025 | M126: 2025 | N126: 2025 | O126: 합 계
B127: 월 | C127: 12 | D127: 1 | E127: 2 | F127: 3 | G127: 4 | H127: 5 | I127: 6 | J127: 7 | K127: 8 | L127: 9 | M127: 10 | N127: 11
B128: 증대량(MWh) | C128: 0 | D128: 0 | E128: 0 | F128: 7378.289 | O128: =SUM(C128:N128) -> 7378.289
B130: ㅇ 제주 플러스DR 증대실적
B131: 연 | C131: 2020 | D131: 2021 | E131: 2021 | F131: 2021 | G131: 2021 | H131: 2021 | I131: 2021 | J131: 2021 | K131: 2021 | L131: 2021 | M131: 2021 | N131: 2021 | O131: 합 계
B132: 월 | C132: 12 | D132: 1 | E132: 2 | F132: 3 | G132: 4 | H132: 5 | I132: 6 | J132: 7 | K132: 8 | L132: 9 | M132: 10 | N132: 11
B133: 증대량(kWh) | G133: 3215 | H133: 15796 | I133: 0 | J133: 0 | K133: 0 | L133: 0 | M133: 467 | N133: 0 | O133: =SUM(C133:N133) -> 19478
B135: 연 | C135: 2021 | D135: 2022 | E135: 2022 | F135: 2022 | G135: 2022 | H135: 2022 | I135: 2022 | J135: 2022 | K135: 2022 | L135: 2022 | M135: 2022 | N135: 2022 | O135: 합 계
B136: 월 | C136: 12 | D136: 1 | E136: 2 | F136: 3 | G136: 4 | H136: 5 | I136: 6 | J136: 7 | K136: 8 | L136: 9 | M136: 10 | N136: 11
B137: 증대량(kWh) | C137: 0 | D137: 0 | E137: 0 | F137: 4873 | G137: 34396 | H137: 48342 | I137: 0 | J137: 0 | K137: 0 | L137: 0 | M137: 40018 | N137: 28291 | O137: =SUM(C137:N137) -> 155920
B139: 연 | C139: =C135+1 -> 2022 | D139: 2023 | E139: 2023 | F139: 2023 | G139: 2023 | H139: 2023 | I139: 2023 | J139: 2023 | K139: 2023 | L139: 2023 | M139: 2023 | N139: 2023 | O139: 합 계
B140: 월 | C140: 12 | D140: 1 | E140: 2 | F140: 3 | G140: 4 | H140: 5 | I140: 6 | J140: 7 | K140: 8 | L140: 9 | M140: 10 | N140: 11
B141: 하루전시장 증대량(kWh) | C141: 0 | D141: 6565 | E141: 26296 | F141: 31532 | G141: 58780 | H141: 25537 | I141: 0 | J141: 0 | K141: 0 | L141: 0 | M141: 14240 | N141: 0 | O141: =SUM(C141:N141) -> 162950
B142: 실시간시장 증대량(kWh) | C142: 0 | D142: 6014 | E142: 37894 | F142: 116194 | G142: 74919 | H142: 66517 | I142: 9187 | J142: 0 | K142: 0 | L142: 0 | M142: 49192 | N142: 0 | O142: =SUM(C142:N142) -> 359917
B144: 연 | C144: =C139+1 -> 2023 | D144: =D139+1 -> 2024 | E144: 2024 | F144: 2024 | G144: 2024 | H144: 2024 | I144: 2024 | J144: 2024 | K144: 2024 | L144: 2024 | M144: 2024 | N144: 2024 | O144: 합 계
B145: 월 | C145: 12 | D145: 1 | E145: 2 | F145: 3 | G145: 4 | H145: 5 | I145: 6 | J145: 7 | K145: 8 | L145: 9 | M145: 10 | N145: 11
B146: 하루전시장 증대량(kWh) | C146: 0 | D146: 0 | E146: 0 | F146: 0 | G146: 0 | H146: 0 | I146: 0 | J146: 0 | K146: 0 | L146: 0 | M146: 0 | N146: 0 | O146: =SUM(C146:N146) -> 0
B147: 실시간시장 증대량(kWh) | C147: 0 | D147: 0 | E147: 0 | F147: 0 | G147: 0 | H147: 0 | I147: 0 | J147: 0 | K147: 0 | L147: 0 | M147: 0 | N147: 0 | O147: =SUM(C147:N147) -> 0
B149: 연 | C149: 2024 | D149: 2025 | E149: 2025 | F149: 2025 | G149: 2025 | H149: 2025 | I149: 2025 | J149: 2025 | K149: 2025 | L149: 2025 | M149: 2025 | N149: 2025 | O149: 합 계
B150: 월 | C150: 12 | D150: 1 | E150: 2 | F150: 3 | G150: 4 | H150: 5 | I150: 6 | J150: 7 | K150: 8 | L150: 9 | M150: 10 | N150: 11
B151: 하루전시장 증대량(kWh) | C151: 0 | D151: 0 | E151: 0 | F151: 0 | O151: =SUM(C151:N151) -> 0
B152: 실시간시장 증대량(kWh) | C152: 0 | D152: 0 | E152: 0 | F152: 0 | O152: =SUM(C152:N152) -> 0

Sheet 월별 정산금 지급 실적
B2: ㅇ 정산금 지급 실적(백만원)
B3: 차수 | C3: 7 | D3: 7 | E3: 7 | F3: 7 | G3: 7 | H3: 7 | I3: 7 | J3: 7 | K3: 7 | L3: 7 | M3: 7 | N3: 7 | O3: 7
B4: 연 | C4: 2020 | D4: 2021 | E4: 2021 | F4: 2021 | G4: 2021 | H4: 2021 | I4: 2021 | J4: 2021 | K4: 2021 | L4: 2021 | M4: 2021 | N4: 2021 | O4: 합계
B5: 월 | C5: 12 | D5: 1 | E5: 2 | F5: 3 | G5: 4 | H5: 5 | I5: 6 | J5: 7 | K5: 8 | L5: 9 | M5: 10 | N5: 11
B6: 실적정산금 | C6: 2784.355463 | D6: 1142.43547 | E6: 941.515301 | F6: 1095.922435 | G6: 2081.810155 | H6: 2498.335704 | I6: 3347.990187 | J6: 3186.965553 | K6: 2641.880696 | L6: 3505.934769 | M6: 4375.483989 | N6: 1483.145393 | O6: =SUM(C6:N6) -> 29085.77512
B7: 기본정산금 | C7: 19870.43902 | D7: 22121.27028 | E7: 25662.72903 | F7: 3973.902404 | G7: 2340.713022 | H7: 15846.03114 | I7: 4809.96723 | J7: 18647.41548 | K7: 54852.2748 | L7: 7242.229227 | M7: 2235.320741 | N7: 19226.29421 | O7: =SUM(C7:N7) -> 196828.5866
B8: 합 계 | C8: 22654.79449 | D8: 23263.70575 | E8: 26604.24433 | F8: 5069.824839 | G8: 4422.523177 | H8: 18344.36685 | I8: 8157.957417 | J8: 21834.38104 | K8: 57494.15549 | L8: 10748.164 | M8: 6610.80473 | N8: 20709.4396 | O8: =SUM(O6:O7) -> 225914.3617
B10: 차수 | C10: 8 | D10: 8 | E10: 8 | F10: 8 | G10: 8 | H10: 8 | I10: 8 | J10: 8 | K10: 8 | L10: 8 | M10: 8 | N10: 8 | O10: 8
B11: 연 | C11: 2021 | D11: 2022 | E11: 2022 | F11: 2022 | G11: 2022 | H11: 2022 | I11: 2022 | J11: 2022 | K11: 2022 | L11: 2022 | M11: 2022 | N11: 2022 | O11: 합계
B12: 월 | C12: 12 | D12: 1 | E12: 2 | F12: 3 | G12: 4 | H12: 5 | I12: 6 | J12: 7 | K12: 8 | L12: 9 | M12: 10 | N12: 11
B13: 실적정산금 | C13: 3617.452594 | D13: 1072.613271 | E13: 2451.64611 | F13: 2489.953869 | G13: 1155.672204 | H13: 3851.597247 | I13: 3629.638124 | J13: 1400.173372 | K13: 9399.752738 | L13: 2397.523784 | M13: 2203.438137 | N13: 1362.309827 | O13: =SUM(C13:N13) -> 35031.77128
B14: 기본정산금 | C14: 24180.57479 | D14: 20924.32324 | E14: 20043.79576 | F14: 3403.307735 | G14: 2155.491933 | H14: 12695.76373 | I14: 4544.973612 | J14: 21344.48762 | K14: 60532.67372 | L14: 9305.066576 | M14: 2389.289592 | N14: 25228.30327 | O14: =SUM(C14:N14) -> 206748.0516
B15: 합 계 | C15: 27798.02738 | D15: 21996.93652 | E15: 22495.44187 | F15: 5893.261604 | G15: 3311.164137 | H15: 16547.36097 | I15: 8174.611736 | J15: 22744.661 | K15: 69932.42646 | L15: 11702.59036 | M15: 4592.727729 | N15: 26590.6131 | O15: =SUM(O13:O14) -> 241779.8229
B17: 차수 | C17: 9 | D17: 9 | E17: 9 | F17: 9 | G17: 9 | H17: 9 | I17: 9 | J17: 9 | K17: 9 | L17: 9 | M17: 9 | N17: 9 | O17: 9
B18: 연 | C18: 2022 | D18: 2023 | E18: 2023 | F18: 2023 | G18: 2023 | H18: 2023 | I18: 2023 | J18: 2023 | K18: 2023 | L18: 2023 | M18: 2023 | N18: 2023 | O18: 합계
B19: 월 | C19: 12 | D19: 1 | E19: 2 | F19: 3 | G19: 4 | H19: 5 | I19: 6 | J19: 7 | K19: 8 | L19: 9 | M19: 10 | N19: 11
B20: 실적정산금 | C20: 9782.968658 | D20: 6283.224091 | E20: 5821.060162 | F20: 2493.914277 | G20: 870.72086 | H20: 881.602435 | I20: 2480.037771 | J20: 2534.383305 | K20: 4066.928528 | L20: 1408.612771 | M20: 719.499436 | N20: 1798.364775 | O20: =SUM(C20:N20) -> 39141.31707
B21: 기본정산금 | C21: 19078.11342 | D21: 13022.63509 | E21: 29490.07146 | F21: 5360.235137 | G21: 1707.513229 | H21: 11023.37978 | I21: 7975.807468 | J21: 18214.83258 | K21: 54776.83066 | L21: 10643.19838 | M21: 3164.820107 | N21: 34467.75796 | O21: =SUM(C21:N21) -> 208925.1953
B22: 합 계 | C22: 28861.08208 | D22: 19305.85918 | E22: 35311.13162 | F22: 7854.149414 | G22: 2578.234089 | H22: 11904.98222 | I22: 10455.84524 | J22: 20749.10234 | K22: 58843.75918 | L22: 12051.81116 | M22: 3884.319543 | N22: 36266.12273 | O22: =SUM(O20:O21) -> 248066.5123
B24: 차수 | C24: 10 | D24: 10 | E24: 10 | F24: 10 | G24: 10 | H24: 10 | I24: 10 | J24: 10 | K24: 10 | L24: 10 | M24: 10 | N24: 10 | O24: 10
B25: 연 | C25: 2023 | D25: 2024 | E25: 2024 | F25: 2024 | G25: 2024 | H25: 2024 | I25: 2024 | J25: 2024 | K25: 2024 | L25: 2024 | M25: 2024 | N25: 2024 | O25: 합계
B26: 월 | C26: 12 | D26: 1 | E26: 2 | F26: 3 | G26: 4 | H26: 5 | I26: 6 | J26: 7 | K26: 8 | L26: 9 | M26: 10 | N26: 11
B27: 실적정산금 | C27: 3058.177407 | D27: 3460.088079 | E27: 1893.542498 | F27: 1321.433804 | G27: 1268.612814 | H27: 986.078359 | I27: 2592.81149 | J27: 3164.007589 | K27: 6773.760868 | L27: 5178.475264 | M27: 734.059553 | N27: 222.959824 | O27: =SUM(C27:N27) -> 30654.00755
B28: 기본정산금 | C28: 17482.8776 | D28: 13417.26521 | E28: 20143.53194 | F28: 6282.245225 | G28: 3038.413685 | H28: 13362.00371 | I28: 9229.138501 | J28: 15660.32231 | K28: 59688.66452 | L28: 9098.525195 | M28: 4841.211362 | N28: 39976.96913 | O28: =SUM(C28:N28) -> 212221.1684
B29: 합 계 | C29: 20541.05501 | D29: 16877.35329 | E29: 22037.07444 | F29: 7603.679029 | G29: 4307.026499 | H29: 14348.08206 | I29: 11821.94999 | J29: 18824.3299 | K29: 66462.42539 | L29: 14277.00046 | M29: 5575.270915 | N29: 40199.92896 | O29: 242875.1759
B31: 차수 | C31: 11 | D31: 11 | E31: 11 | F31: 11 | G31: 11 | H31: 11 | I31: 11 | J31: 11 | K31: 11 | L31: 11 | M31: 11 | N31: 11 | O31: 11
B32: 연 | C32: 2024 | D32: 2025 | E32: 2025 | F32: 2025 | G32: 2025 | H32: 2025 | I32: 2025 | J32: 2025 | K32: 2025 | L32: 2025 | M32: 2025 | N32: 2025 | O32: 합계
B33: 월 | C33: 12 | D33: 1 | E33: 2 | F33: 3 | G33: 4 | H33: 5 | I33: 6 | J33: 7 | K33: 8 | L33: 9 | M33: 10 | N33: 11
B34: 실적정산금 | C34: 1335.082611 | D34: 2696.696868 | E34: 768.605668 | F34: 2629.632478 | O34: =SUM(C34:N34) -> 7430.017625
B35: 기본정산금 | C35: 13599.25524 | D35: 9620.757154 | E35: 14773.01704 | F35: 7109.989945 | O35: =SUM(C35:N35) -> 45103.01937
B36: 합 계 | C36: 14934.33785 | D36: 12317.45402 | E36: 15541.6227 | F36: 9739.622423 | O36: 52533.037
B38: ㅇ 실적정산금 지급 실적(백만원)
B39: 차수 | C39: 7 | D39: 7 | E39: 7 | F39: 7 | G39: 7 | H39: 7 | I39: 7 | J39: 7 | K39: 7 | L39: 7 | M39: 7 | N39: 7 | O39: 7
B40: 연 | C40: 2020 | D40: 2021 | E40: 2021 | F40: 2021 | G40: 2021 | H40: 2021 | I40: 2021 | J40: 2021 | K40: 2021 | L40: 2021 | M40: 2021 | N40: 2021 | O40: 합계
B41: 월 | C41: 12 | D41: 1 | E41: 2 | F41: 3 | G41: 4 | H41: 5 | I41: 6 | J41: 7 | K41: 8 | L41: 9 | M41: 10 | N41: 11
B42: 신뢰성DR 정산금 | C42: 377.977399 | D42: 0 | E42: 0 | F42: 0 | G42: 0 | H42: 0 | I42: 474.428774 | J42: 0 | K42: 0 | L42: 0 | M42: 0 | N42: 0 | O42: =SUM(C42:N42) -> 852.406173
B43: 자발적DR 정산금 | C43: 2422.965358 | D43: 1158.627653 | E43: 954.065642 | F43: 1105.433972 | G43: 2100.581126 | H43: 2521.589198 | I43: 2900.247883 | J43: 3209.246981 | K43: 2676.908295 | L43: 3530.528151 | M43: 4392.481254 | N43: 1492.145185 | O43: =SUM(C43:N43) -> 28464.8207
B44: 위약금 | C44: 16.587294 | D44: 16.192183 | E44: 12.550341 | F44: 9.511537 | G44: 18.770971 | H44: 23.253494 | I44: 26.68647 | J44: 22.281428 | K44: 35.027599 | L44: 24.593382 | M44: 16.997265 | N44: 8.999792 | O44: 231.451756
B45: 합 계 | C45: =SUM(C42:C43)-C44 -> 2784.355463 | D45: =SUM(D42:D43)-D44 -> 1142.43547 | E45: 941.515301 | F45: 1095.922435 | G45: 2081.810155 | H45: 2498.335704 | I45: 3347.990187 | J45: 3186.965553 | K45: 2641.880696 | L45: 3505.934769 | M45: 4375.483989 | N45: 1483.145393 | O45: 29085.77512
B47: 차수 | C47: 8 | D47: 8 | E47: 8 | F47: 8 | G47: 8 | H47: 8 | I47: 8 | J47: 8 | K47: 8 | L47: 8 | M47: 8 | N47: 8 | O47: 8
B48: 연 | C48: 2021 | D48: 2022 | E48: 2022 | F48: 2022 | G48: 2022 | H48: 2022 | I48: 2022 | J48: 2022 | K48: 2022 | L48: 2022 | M48: 2022 | N48: 2022 | O48: 합계
B49: 월 | C49: 12 | D49: 1 | E49: 2 | F49: 3 | G49: 4 | H49: 5 | I49: 6 | J49: 7 | K49: 8 | L49: 9 | M49: 10 | N49: 11
B50: 신뢰성DR 정산금 | C50: 796.32736 | D50: 0 | E50: 0 | F50: 0 | G50: 0 | H50: 0 | I50: 774.105219 | J50: 0 | K50: 0 | L50: 0 | M50: 0 | N50: 0 | O50: =SUM(C50:N50) -> 1570.432579
B51: 자발적DR 정산금 | C51: 2835.207834 | D51: 1084.55356 | E51: 2456.793384 | F51: 2502.508436 | G51: 1158.468953 | H51: 3870.480626 | I51: 2876.543882 | J51: 1401.361775 | K51: 9440.378368 | L51: 2413.724882 | M51: 2229.439103 | N51: 1370.425871 | O51: =SUM(C51:N51) -> 33639.88667
B52: 위약금 | C52: 14.0826 | D52: 11.940289 | E52: 5.147274 | F52: 12.554567 | G52: 2.796749 | H52: 18.883379 | I52: 21.010977 | J52: 1.188403 | K52: 40.62563 | L52: 16.201098 | M52: 26.000966 | N52: 8.116044 | O52: 178.547976
B53: 합 계 | C53: =SUM(C50:C51)-C52 -> 3617.452594 | D53: =SUM(D50:D51)-D52 -> 1072.613271 | E53: =SUM(E50:E51)-E52 -> 2451.64611 | F53: =SUM(F50:F51)-F52 -> 2489.953869 | G53: =SUM(G50:G51)-G52 -> 1155.672204 | H53: =SUM(H50:H51)-H52 -> 3851.597247 | I53: =SUM(I50:I51)-I52 -> 3629.638124 | J53: =SUM(J50:J51)-J52 -> 1400.173372 | K53: =SUM(K50:K51)-K52 -> 9399.752738 | L53: =SUM(L50:L51)-L52 -> 2397.523784 | M53: =SUM(M50:M51)-M52 -> 2203.438137 | N53: =SUM(N50:N51)-N52 -> 1362.309827 | O53: =SUM(O50:O51)-O52 -> 35031.77128
B55: 차수 | C55: 9 | D55: 9 | E55: 9 | F55: 9 | G55: 9 | H55: 9 | I55: 9 | J55: 9 | K55: 9 | L55: 9 | M55: 9 | N55: 9 | O55: 9
B56: 연 | C56: 2022 | D56: 2023 | E56: 2023 | F56: 2023 | G56: 2023 | H56: 2023 | I56: 2023 | J56: 2023 | K56: 2023 | L56: 2023 | M56: 2023 | N56: 2023 | O56: 합계
B57: 월 | C57: 12 | D57: 1 | E57: 2 | F57: 3 | G57: 4 | H57: 5 | I57: 6 | J57: 7 | K57: 8 | L57: 9 | M57: 10 | N57: 11
B58: 신뢰성DR 정산금 | C58: 1522.064798 | D58: 0 | E58: 0 | F58: 0 | G58: 0 | H58: 0 | I58: 914.26698 | J58: 0 | K58: 0 | L58: 0 | M58: 0 | N58: 0 | O58: =SUM(C58:N58) -> 2436.331778
B59: 자발적DR 정산금 | C59: 8322.932966 | D59: 6320.839568 | E59: 5858.222656 | F59: 2516.574908 | G59: 872.104618 | H59: 885.537599 | I59: 1574.572164 | J59: 2563.090701 | K59: 4080.182076 | L59: 1412.413116 | M59: 723.087901 | N59: 1834.699074 | O59: =SUM(C59:N59) -> 36964.25735
B60: 위약금 | C60: 62.029106 | D60: 37.615477 | E60: 37.162494 | F60: 22.660631 | G60: 1.383758 | H60: 3.935164 | I60: 8.801373 | J60: 28.707396 | K60: 13.253548 | L60: 3.800345 | M60: 3.588465 | N60: 36.334299 | O60: 259.272056
B61: 합 계 | C61: =SUM(C58:C59)-C60 -> 9782.968658 | D61: 6283.224091 | E61: 5821.060162 | F61: 2493.914277 | G61: 870.72086 | H61: 881.602435 | I61: 2480.037771 | J61: 2534.383305 | K61: 4066.928528 | L61: 1408.612771 | M61: 719.499436 | N61: 1798.364775 | O61: =SUM(O58:O59)-O60 -> 39141.31707
B63: 차수 | C63: 10 | D63: 10 | E63: 10 | F63: 10 | G63: 10 | H63: 10 | I63: 10 | J63: 10 | K63: 10 | L63: 10 | M63: 10 | N63: 10 | O63: 10
B64: 연 | C64: 2023 | D64: 2024 | E64: 2024 | F64: 2024 | G64: 2024 | H64: 2024 | I64: 2024 | J64: 2024 | K64: 2024 | L64: 2024 | M64: 2024 | N64: 2024 | O64: 합계
B65: 월 | C65: 12 | D65: 1 | E65: 2 | F65: 3 | G65: 4 | H65: 5 | I65: 6 | J65: 7 | K65: 8 | L65: 9 | M65: 10 | N65: 11
B66: 신뢰성DR 정산금 | C66: 779.780127 | D66: 862.692279 | E66: 0 | F66: 0 | G66: 0 | H66: 0 | I66: 704.14831 | J66: 0 | K66: 1333.108992 | L66: 2466.44158 | M66: 0 | N66: 0 | O66: =SUM(C66:N66) -> 6146.171288
B67: 자발적DR 정산금 | C67: 2296.942589 | D67: 2609.617545 | E67: 1920.831028 | F67: 1331.419173 | G67: 1275.845077 | H67: 1015.432782 | I67: 1903.571924 | J67: 3175.299459 | K67: 5514.919697 | L67: 2746.197807 | M67: 734.63753 | N67: 222.964091 | O67: =SUM(C67:N67) -> 24747.6787
B68: 위약금 | C68: 18.545309 | D68: 12.221745 | E68: 27.28853 | F68: 9.985369 | G68: 7.232263 | H68: 29.354423 | I68: 14.908744 | J68: 11.29187 | K68: 74.267821 | L68: 34.164123 | M68: 0.577977 | N68: 0.004267 | O68: 239.842441
B69: 합 계 | C69: 3058.177407 | D69: 3460.088079 | E69: 1893.542498 | F69: 1321.433804 | G69: 1268.612814 | H69: 986.078359 | I69: 2592.81149 | J69: 3164.007589 | K69: 6773.760868 | L69: 5178.475264 | M69: 734.059553 | N69: 222.959824 | O69: =SUM(O66:O67)-O68 -> 30654.00755
B71: 차수 | C71: 11 | D71: 11 | E71: 11 | F71: 11 | G71: 11 | H71: 11 | I71: 11 | J71: 11 | K71: 11 | L71: 11 | M71: 11 | N71: 11 | O71: 11
B72: 연 | C72: 2024 | D72: 2025 | E72: 2025 | F72: 2025 | G72: 2025 | H72: 2025 | I72: 2025 | J72: 2025 | K72: 2025 | L72: 2025 | M72: 2025 | N72: 2025 | O72: 합계
B73: 월 | C73: 12 | D73: 1 | E73: 2 | F73: 3 | G73: 4 | H73: 5 | I73: 6 | J73: 7 | K73: 8 | L73: 9 | M73: 10 | N73: 11
B74: 신뢰성DR 정산금 | C74: 638.998511 | D74: 625.447291 | E74: 0 | F74: 0 | O74: =SUM(C74:N74) -> 1264.445802
B75: 자발적DR 정산금 | C75: 698.49212 | D75: 2095.334542 | E75: 770.375991 | F75: 2641.766403 | O75: =SUM(C75:N75) -> 6205.969056
B76: 위약금 | C76: 2.40802 | D76: 24.084965 | E76: 1.770323 | F76: 12.133925 | O76: 40.397233
B77: 합 계 | C77: 1335.082611 | D77: 2696.696868 | E77: 768.605668 | F77: 2629.632478 | O77: =SUM(O74:O75)-O76 -> 7430.017625
B79: ㅇ 기본정산금 지급 실적(백만원)
B80: 차수 | C80: 7 | D80: 7 | E80: 7 | F80: 7 | G80: 7 | H80: 7 | I80: 7 | J80: 7 | K80: 7 | L80: 7 | M80: 7 | N80: 7 | O80: 7
B81: 연 | C81: 2020 | D81: 2021 | E81: 2021 | F81: 2021 | G81: 2021 | H81: 2021 | I81: 2021 | J81: 2021 | K81: 2021 | L81: 2021 | M81: 2021 | N81: 2021 | O81: 합계
B82: 월 | C82: 12 | D82: 1 | E82: 2 | F82: 3 | G82: 4 | H82: 5 | I82: 6 | J82: 7 | K82: 8 | L82: 9 | M82: 10 | N82: 11
B83: 고정기본정산금 | C83: 19926.43598 | D83: 22121.27028 | E83: 13332.19603 | F83: 3973.902404 | G83: 2340.713022 | H83: 1963.235942 | I83: 4850.505947 | J83: 18647.41548 | K83: 23190.4013 | L83: 7242.229227 | M83: 2235.320741 | N83: 8058.155137 | O83: =SUM(C83:N83) -> 127881.7815
B84: 차등기본정산금 | C84: 0 | D84: 0 | E84: 12330.53299 | F84: 0 | G84: 0 | H84: 13882.7952 | I84: 0 | J84: 0 | K84: 31661.87349 | L84: 0 | M84: 0 | N84: 11168.13907 | O84: =SUM(C84:N84) -> 69043.34075
B85: 위약금 | C85: 55.996952 | D85: 0 | E85: 0 | F85: 0 | G85: 0 | H85: 0 | I85: 40.538717 | J85: 0 | K85: 0 | L85: 0 | M85: 0 | N85: 0 | O85: 96.535669
B86: 합 계 | C86: =SUM(C83:C84)-C85 -> 19870.43902 | D86: =SUM(D83:D84)-D85 -> 22121.27028 | E86: =SUM(E83:E84)-E85 -> 25662.72902 | F86: =SUM(F83:F84)-F85 -> 3973.902404 | G86: =SUM(G83:G84)-G85 -> 2340.713022 | H86: =SUM(H83:H84)-H85 -> 15846.03114 | I86: =SUM(I83:I84)-I85 -> 4809.96723 | J86: =SUM(J83:J84)-J85 -> 18647.41548 | K86: =SUM(K83:K84)-K85 -> 54852.2748 | L86: =SUM(L83:L84)-L85 -> 7242.229227 | M86: =SUM(M83:M84)-M85 -> 2235.320741 | N86: =SUM(N83:N84)-N85 -> 19226.29421 | O86: =SUM(O83:O84)-O85 -> 196828.5866
B88: 차수 | C88: 8 | D88: 8 | E88: 8 | F88: 8 | G88: 8 | H88: 8 | I88: 8 | J88: 8 | K88: 8 | L88: 8 | M88: 8 | N88: 8 | O88: 8
B89: 연 | C89: 2021 | D89: 2022 | E89: 2022 | F89: 2022 | G89: 2022 | H89: 2022 | I89: 2022 | J89: 2022 | K89: 2022 | L89: 2022 | M89: 2022 | N89: 2022 | O89: 합계
B90: 월 | C90: 12 | D90: 1 | E90: 2 | F90: 3 | G90: 4 | H90: 5 | I90: 6 | J90: 7 | K90: 8 | L90: 9 | M90: 10 | N90: 11
B91: 고정기본정산금 | C91: 24205.53702 | D91: 20924.32324 | E91: 12390.80277 | F91: 3403.307735 | G91: 2155.491933 | H91: 2092.432326 | I91: 4636.003382 | J91: 21344.48762 | K91: 27136.4966 | L91: 9305.066576 | M91: 2389.289592 | N91: 6101.9142 | O91: =SUM(C91:N91) -> 136085.153
B92: 차등기본정산금 | C92: 0 | D92: 0 | E92: 7652.99299 | F92: 0 | G92: 0 | H92: 10603.3314 | I92: 0 | J92: 0 | K92: 33396.17711 | L92: 0 | M92: 0 | N92: 19126.38907 | O92: =SUM(C92:N92) -> 70778.89058
B93: 위약금 | C93: 24.962233 | D93: 0 | E93: 0 | F93: 0 | G93: 0 | H93: 0 | I93: 91.02977 | J93: 0 | K93: 0 | L93: 0 | M93: 0 | N93: 0 | O93: 115.992003
B94: 합 계 | C94: =SUM(C91:C92)-C93 -> 24180.57479 | D94: =SUM(D91:D92)-D93 -> 20924.32324 | E94: =SUM(E91:E92)-E93 -> 20043.79576 | F94: =SUM(F91:F92)-F93 -> 3403.307735 | G94: =SUM(G91:G92)-G93 -> 2155.491933 | H94: =SUM(H91:H92)-H93 -> 12695.76373 | I94: =SUM(I91:I92)-I93 -> 4544.973612 | J94: =SUM(J91:J92)-J93 -> 21344.48762 | K94: =SUM(K91:K92)-K93 -> 60532.67372 | L94: =SUM(L91:L92)-L93 -> 9305.066576 | M94: =SUM(M91:M92)-M93 -> 2389.289592 | N94: =SUM(N91:N92)-N93 -> 25228.30327 | O94: =SUM(O91:O92)-O93 -> 206748.0516
B96: 차수 | C96: 9 | D96: 9 | E96: 9 | F96: 9 | G96: 9 | H96: 9 | I96: 9 | J96: 9 | K96: 9 | L96: 9 | M96: 9 | N96: 9 | O96: 9
B97: 연 | C97: 2022 | D97: 2023 | E97: 2023 | F97: 2023 | G97: 2023 | H97: 2023 | I97: 2023 | J97: 2023 | K97: 2023 | L97: 2023 | M97: 2023 | N97: 2023 | O97: 합계
B98: 월 | C98: 12 | D98: 1 | E98: 2 | F98: 3 | G98: 4 | H98: 5 | I98: 6 | J98: 7 | K98: 8 | L98: 9 | M98: 10 | N98: 11
B99: 고정기본정산금 | C99: 19224.69088 | D99: 13022.63509 | E99: 10951.13879 | F99: 5360.235137 | G99: 1707.513229 | H99: 1973.03473 | I99: 8154.85554 | J99: 18215.33214 | K99: 19698.4359 | L99: 10643.19838 | M99: 3164.820107 | N99: 9410.779227 | O99: =SUM(C99:N99) -> 121526.6692
B100: 차등기본정산금 | C100: 0 | D100: 0 | E100: 18538.93267 | F100: 0 | G100: 0 | H100: 9050.345053 | I100: 0 | J100: 0 | K100: 35078.39475 | L100: 0 | M100: 0 | N100: 25056.97873 | O100: =SUM(C100:N100) -> 87724.6512
B101: 위약금 | C101: 146.577459 | D101: 0 | E101: 0 | F101: 0 | G101: 0 | H101: 0 | I101: 179.048072 | J101: 0.499566 | K101: 0 | L101: 0 | M101: 0 | N101: 0 | O101: 326.125097
B102: 합 계 | C102: =SUM(C99:C100)-C101 -> 19078.11342 | D102: =SUM(D99:D100)-D101 -> 13022.63509 | E102: =SUM(E99:E100)-E101 -> 29490.07146 | F102: =SUM(F99:F100)-F101 -> 5360.235137 | G102: =SUM(G99:G100)-G101 -> 1707.513229 | H102: =SUM(H99:H100)-H101 -> 11023.37978 | I102: =SUM(I99:I100)-I101 -> 7975.807468 | J102: =SUM(J99:J100)-J101 -> 18214.83258 | K102: 54776.83066 | L102: 10643.19838 | M102: 3164.820107 | N102: 34467.75796 | O102: =SUM(O99:O100)-O101 -> 208925.1953
B104: 차수 | C104: 10 | D104: 10 | E104: 10 | F104: 10 | G104: 10 | H104: 10 | I104: 10 | J104: 10 | K104: 10 | L104: 10 | M104: 10 | N104: 10 | O104: 10
B105: 연 | C105: 2023 | D105: 2024 | E105: 2024 | F105: 2024 | G105: 2024 | H105: 2024 | I105: 2024 | J105: 2024 | K105: 2024 | L105: 2024 | M105: 2024 | N105: 2024 | O105: 합계
B106: 월 | C106: 12 | D106: 1 | E106: 2 | F106: 3 | G106: 4 | H106: 5 | I106: 6 | J106: 7 | K106: 8 | L106: 9 | M106: 10 | N106: 11
B107: 고정기본정산금 | C107: 17528.75002 | D107: 13925.15521 | E107: 10691.6861 | F107: 6282.245225 | G107: 3038.413685 | H107: 3483.387976 | I107: 9336.807878 | J107: 15661.26038 | K107: 14451.25533 | L107: 9521.627275 | M107: 4841.211362 | N107: 8308.163498 | O107: =SUM(C107:N107) -> 117069.9639
B108: 차등기본정산금 | C108: 0 | D108: 0 | E108: 9451.84584 | F108: 0 | G108: 0 | H108: 9878.615729 | I108: 0 | J108: 0 | K108: 45957.75998 | L108: 0 | M108: 0 | N108: 31668.80563 | O108: =SUM(C108:N108) -> 96957.02719
B109: 위약금 | C109: 45.872418 | D109: 507.889995 | E109: 0 | F109: 0 | G109: 0 | H109: 0 | I109: 107.669377 | J109: 0.93807 | K109: 720.350799 | L109: 423.10208 | M109: 0 | N109: 0 | O109: 1805.822739
B110: 합 계 | C110: 17482.8776 | D110: 13417.26521 | E110: 20143.53194 | F110: 6282.245225 | G110: 3038.413685 | H110: 13362.00371 | I110: 9229.138501 | J110: 15660.32231 | K110: 59688.66452 | L110: 9098.525195 | M110: 4841.211362 | N110: 39976.96913 | O110: =SUM(O107:O108)-O109 -> 212221.1684
B112: 차수 | C112: 11 | D112: 11 | E112: 11 | F112: 11 | G112: 11 | H112: 11 | I112: 11 | J112: 11 | K112: 11 | L112: 11 | M112: 11 | N112: 11 | O112: 10
B113: 연 | C113: 2024 | D113: 2025 | E113: 2025 | F113: 2025 | G113: 2025 | H113: 2025 | I113: 2025 | J113: 2025 | K113: 2025 | L113: 2025 | M113: 2025 | N113: 2025 | O113: 합계
B114: 월 | C114: 12 | D114: 1 | E114: 2 | F114: 3 | G114: 4 | H114: 5 | I114: 6 | J114: 7 | K114: 8 | L114: 9 | M114: 10 | N114: 11
B115: 고정기본정산금 | C115: 13653.83149 | D115: 9815.153793 | E115: 9510.955105 | F115: 7109.989945 | O115: =SUM(C115:N115) -> 40089.93033
B116: 차등기본정산금 | C116: 0 | D116: 0 | E116: 5262.06193 | F116: 0 | O116: =SUM(C116:N116) -> 5262.06193
B117: 위약금 | C117: 54.576251 | D117: 194.396639 | E117: 0 | F117: 0 | O117: 248.97289
B118: 합 계 | C118: 13599.25524 | D118: 9620.757154 | E118: 14773.01704 | F118: 7109.989945 | O118: =SUM(O115:O116)-O117 -> 45103.01937
B120: ㅇ 국민DR 정산금
B121: 연 | C121: 2020 | D121: 2021 | E121: 2021 | F121: 2021 | G121: 2021 | H121: 2021 | I121: 2021 | J121: 2021 | K121: 2021 | L121: 2021 | M121: 2021 | N121: 2021 | O121: 합 계
B122: 월 | C122: 12 | D122: 1 | E122: 2 | F122: 3 | G122: 4 | H122: 5 | I122: 6 | J122: 7 | K122: 8 | L122: 9 | M122: 10 | N122: 11
B123: 정산금(천원) | C123: 366.197 | D123: 190.289 | E123: 123.196 | F123: 226.768 | G123: 129.466 | H123: 108.66 | I123: 33.036 | J123: 16.737 | K123: 147.848 | L123: 72.512 | M123: 99.645 | N123: 149.629 | O123: =SUM(C123:N123) -> 1663.983
B125: 연 | C125: =C121+1 -> 2021 | D125: =D121+1 -> 2022 | E125: 2022 | F125: 2022 | G125: 2022 | H125: 2022 | I125: 2022 | J125: 2022 | K125: 2022 | L125: 2022 | M125: 2022 | N125: 2022 | O125: 합 계
B126: 월 | C126: 12 | D126: 1 | E126: 2 | F126: 3 | G126: 4 | H126: 5 | I126: 6 | J126: 7 | K126: 8 | L126: 9 | M126: 10 | N126: 11
B127: 정산금(천원) | C127: 739.076 | D127: 501.498 | E127: 331.887 | F127: 1009.205 | G127: 1468.769 | H127: 680.458 | I127: 47.032 | J127: 629.681 | K127: 944.506 | L127: 815.906 | M127: 286.183 | N127: 1964.841 | O127: =SUM(C127:N127) -> 9419.042
B129: 연 | C129: =C125+1 -> 2022 | D129: =D125+1 -> 2023 | E129: 2023 | F129: 2023 | G129: 2023 | H129: 2023 | I129: 2023 | J129: 2023 | K129: 2023 | L129: 2023 | M129: 2023 | N129: 2023 | O129: 합 계
B130: 월 | C130: 12 | D130: 1 | E130: 2 | F130: 3 | G130: 4 | H130: 5 | I130: 6 | J130: 7 | K130: 8 | L130: 9 | M130: 10 | N130: 11
B131: 정산금(천원) | C131: 1641.18 | D131: 5913.265 | E131: 6301.669 | F131: 11918.7 | G131: 4877.663 | H131: 1990.862 | I131: 614.506 | J131: 787.144 | K131: 4018.801 | L131: 737.745 | M131: 628.871 | N131: 2144.193 | O131: =SUM(C131:N131) -> 41574.599
B133: 연 | C133: 2023 | D133: =D129+1 -> 2024 | E133: 2024 | F133: 2024 | G133: 2024 | H133: 2024 | I133: 2024 | J133: 2024 | K133: 2024 | L133: 2024 | M133: 2024 | N133: 2024 | O133: 합 계
B134: 월 | C134: 12 | D134: 1 | E134: 2 | F134: 3 | G134: 4 | H134: 5 | I134: 6 | J134: 7 | K134: 8 | L134: 9 | M134: 10 | N134: 11
B135: 정산금(천원) | C135: 9358.781 | D135: 18925.743 | E135: 9194.376 | F135: 9061.965 | G135: 13297.134 | H135: 2122.236 | I135: 3014.236 | J135: 11516.995 | K135: 112228.209 | L135: 5355.495 | M135: 14594.447 | N135: 11860.82 | O135: =SUM(C135:N135) -> 220530.437
B137: 연 | C137: 2024 | D137: 2025 | E137: 2025 | F137: 2025 | G137: 2025 | H137: 2025 | I137: 2025 | J137: 2025 | K137: 2025 | L137: 2025 | M137: 2025 | N137: 2025 | O137: 합 계
B138: 월 | C138: 12 | D138: 1 | E138: 2 | F138: 3 | G138: 4 | H138: 5 | I138: 6 | J138: 7 | K138: 8 | L138: 9 | M138: 10 | N138: 11
B139: 정산금(천원) | C139: 37206.385 | D139: 187064.081 | E139: 129025.401 | F139: 394746.829 | O139: =SUM(C139:N139) -> 748042.696
B141: ㅇ 주파수DR 정산금
B142: 연 | C142: 2020 | D142: 2021 | E142: 2021 | F142: 2021 | G142: 2021 | H142: 2021 | I142: 2021 | J142: 2021 | K142: 2021 | L142: 2021 | M142: 2021 | N142: 2021 | O142: 합 계
B143: 월 | C143: 12 | D143: 1 | E143: 2 | F143: 3 | G143: 4 | H143: 5 | I143: 6 | J143: 7 | K143: 8 | L143: 9 | M143: 10 | N143: 11
B144: 정산금(백만원) | C144: 0 | D144: 0 | E144: 0 | F144: 2335.469692 | G144: 1202.669123 | H144: 2127.58645 | I144: 0 | J144: 0 | K144: 0 | L144: 0 | M144: 0 | N144: 0 | O144: =SUM(C144:N144) -> 5665.725265
B146: 연 | C146: =C142+1 -> 2021 | D146: 2022 | E146: 2022 | F146: 2022 | G146: 2022 | H146: 2022 | I146: 2022 | J146: 2022 | K146: 2022 | L146: 2022 | M146: 2022 | N146: 2022 | O146: 합 계
B147: 월 | C147: 12 | D147: 1 | E147: 2 | F147: 3 | G147: 4 | H147: 5 | I147: 6 | J147: 7 | K147: 8 | L147: 9 | M147: 10 | N147: 11
B148: 정산금(백만원) | C148: 0 | D148: 0 | E148: 0 | F148: 0 | G148: 3233.669585 | H148: 0 | I148: 0 | J148: 0 | K148: 0 | L148: 907.371566 | M148: 0 | N148: 0 | O148: =SUM(C148:N148) -> 4141.041151
B150: 연 | C150: =C146+1 -> 2022 | D150: =D146+1 -> 2023 | E150: 2023 | F150: 2023 | G150: 2023 | H150: 2023 | I150: 2023 | J150: 2023 | K150: 2023 | L150: 2023 | M150: 2023 | N150: 2023 | O150: 합 계
B151: 월 | C151: 12 | D151: 1 | E151: 2 | F151: 3 | G151: 4 | H151: 5 | I151: 6 | J151: 7 | K151: 8 | L151: 9 | M151: 10 | N151: 11
B152: 정산금(백만원) | C152: 0 | D152: 0 | E152: 0 | F152: 0 | G152: 0 | H152: 0 | I152: 0 | J152: 0 | K152: 0 | L152: 0 | M152: 0 | N152: 1052.092375 | O152: =SUM(C152:N152) -> 1052.092375
B154: 연 | C154: =C150+1 -> 2023 | D154: =D150+1 -> 2024 | E154: 2024 | F154: 2024 | G154: 2024 | H154: 2024 | I154: 2024 | J154: 2024 | K154: 2024 | L154: 2024 | M154: 2024 | N154: 2024 | O154: 합 계
B155: 월 | C155: 12 | D155: 1 | E155: 2 | F155: 3 | G155: 4 | H155: 5 | I155: 6 | J155: 7 | K155: 8 | L155: 9 | M155: 10 | N155: 11
B156: 정산금(백만원) | C156: 0 | D156: 0 | E156: 0 | F156: 3232.742 | G156: 0 | H156: 0 | I156: 0 | J156: 15.475843 | K156: 0 | L156: 0 | M156: 0 | N156: 876.416643 | O156: =SUM(C156:N156) -> 4124.634486
B158: 연 | C158: 2024 | D158: 2025 | E158: 2025 | F158: 2025 | G158: 2025 | H158: 2025 | I158: 2025 | J158: 2025 | K158: 2025 | L158: 2025 | M158: 2025 | N158: 2025 | O158: 합 계
B159: 월 | C159: 12 | D159: 1 | E159: 2 | F159: 3 | G159: 4 | H159: 5 | I159: 6 | J159: 7 | K159: 8 | L159: 9 | M159: 10 | N159: 11
B160: 정산금(백만원) | C160: 0 | D160: 0 | E160: 0 | F160: 0 | O160: =SUM(C160:N160) -> 0
B162: ㅇ 육지 플러스DR 정산금
B163: 연 | C163: 2023 | D163: 2024 | E163: 2024 | F163: 2024 | G163: 2024 | H163: 2024 | I163: 2024 | J163: 2024 | K163: 2024 | L163: 2024 | M163: 2024 | N163: 2024 | O163: 합 계
B164: 월 | C164: 12 | D164: 1 | E164: 2 | F164: 3 | G164: 4 | H164: 5 | I164: 6 | J164: 7 | K164: 8 | L164: 9 | M164: 10 | N164: 11
B165: 정산금(백만원) | G165: 98.950148 | H165: 135.472931 | I165: 9.540824 | J165: 0 | K165: 0 | L165: 0 | M165: 80.025219 | N165: 0 | O165: =SUM(C165:N165) -> 323.989122
B167: 연 | C167: 2024 | D167: 2025 | E167: 2025 | F167: 2025 | G167: 2025 | H167: 2025 | I167: 2025 | J167: 2025 | K167: 2025 | L167: 2025 | M167: 2025 | N167: 2025 | O167: 합 계
B168: 월 | C168: 12 | D168: 1 | E168: 2 | F168: 3 | G168: 4 | H168: 5 | I168: 6 | J168: 7 | K168: 8 | L168: 9 | M168: 10 | N168: 11
B169: 정산금(백만원) | C169: 0 | D169: 0 | E169: 0 | F169: 322.89385 | O169: =SUM(C169:N169) -> 322.89385
B171: ㅇ 제주 플러스DR 정산금
B172: 연 | C172: 2020 | D172: 2021 | E172: 2021 | F172: 2021 | G172: 2021 | H172: 2021 | I172: 2021 | J172: 2021 | K172: 2021 | L172: 2021 | M172: 2021 | N172: 2021 | O172: 합 계
B173: 월 | C173: 12 | D173: 1 | E173: 2 | F173: 3 | G173: 4 | H173: 5 | I173: 6 | J173: 7 | K173: 8 | L173: 9 | M173: 10 | N173: 11
B174: 정산금(천원) | G174: 206.872 | H174: 552.546 | I174: 0 | J174: 0 | K174: 0 | L174: 0 | M174: 42.046 | N174: 0 | O174: =SUM(C174:N174) -> 801.464
B176: 연 | C176: 2021 | D176: 2022 | E176: 2022 | F176: 2022 | G176: 2022 | H176: 2022 | I176: 2022 | J176: 2022 | K176: 2022 | L176: 2022 | M176: 2022 | N176: 2022 | O176: 합 계
B177: 월 | C177: 12 | D177: 1 | E177: 2 | F177: 3 | G177: 4 | H177: 5 | I177: 6 | J177: 7 | K177: 8 | L177: 9 | M177: 10 | N177: 11
B178: 정산금(천원) | C178: 0 | D178: 0 | E178: 0 | F178: 735.652 | G178: 4969 | H178: 5053 | I178: 0 | J178: 0 | K178: 0 | L178: 0 | M178: 8246 | N178: 5535 | O178: =SUM(C178:N178) -> 24538.652
B180: 연 | C180: =C176+1 -> 2022 | D180: 2023 | E180: 2023 | F180: 2023 | G180: 2023 | H180: 2023 | I180: 2023 | J180: 2023 | K180: 2023 | L180: 2023 | M180: 2023 | N180: 2023 | O180: 합 계
B181: 월 | C181: 12 | D181: 1 | E181: 2 | F181: 3 | G181: 4 | H181: 5 | I181: 6 | J181: 7 | K181: 8 | L181: 9 | M181: 10 | N181: 11
B182: 하루전시장 정산금(천원) | C182: 0 | D182: 1472 | E182: 5468 | F182: 4907 | G182: 7807 | H182: 3026 | I182: 0 | J182: 0 | K182: 0 | L182: 0 | M182: 1753 | N182: 0 | O182: =SUM(C182:N182) -> 24433
B183: 실시간시장 정산금(천원) | C183: 0 | D183: 1503 | E183: 9346 | F183: 23908 | G183: 10836 | H183: 8495 | I183: 1472.881 | J183: 0 | K183: 0 | L183: 0 | M183: 6344 | N183: 0 | O183: =SUM(C183:N183) -> 61904.881
B185: 연 | C185: 2023 | D185: 2024 | E185: 2024 | F185: 2024 | G185: 2024 | H185: 2024 | I185: 2024 | J185: 2024 | K185: 2024 | L185: 2024 | M185: 2024 | N185: 2024 | O185: 합 계
B186: 월 | C186: 12 | D186: 1 | E186: 2 | F186: 3 | G186: 4 | H186: 5 | I186: 6 | J186: 7 | K186: 8 | L186: 9 | M186: 10 | N186: 11
B187: 하루전시장 정산금(천원) | C187: 0 | D187: 0 | E187: 0 | F187: 0 | G187: 0 | H187: 0 | I187: 0 | J187: 0 | K187: 0 | L187: 0 | M187: 0 | O187: =SUM(C187:N187) -> 0
B188: 실시간시장 정산금(천원) | C188: 0 | D188: 0 | E188: 0 | F188: 0 | G188: 0 | H188: 0 | I188: 0 | J188: 0 | K188: 0 | L188: 0 | M188: 0 | O188: =SUM(C188:N188) -> 0
B190: 연 | C190: 2024 | D190: 2025 | E190: 2025 | F190: 2025 | G190: 2025 | H190: 2025 | I190: 2025 | J190: 2025 | K190: 2025 | L190: 2025 | M190: 2025 | N190: 2025 | O190: 합 계
B191: 월 | C191: 12 | D191: 1 | E191: 2 | F191: 3 | G191: 4 | H191: 5 | I191: 6 | J191: 7 | K191: 8 | L191: 9 | M191: 10 | N191: 11
B192: 하루전시장 정산금(천원) | C192: 0 | D192: 0 | E192: 0 | F192: 0 | O192: =SUM(C192:N192) -> 0
B193: 실시간시장 정산금(천원) | C193: 0 | D193: 0 | E193: 0 | F193: 0 | O193: =SUM(C193:N193) -> 0

Sheet 사업자별 신뢰성DR 감축이행률
B2: ㅇ 신뢰성DR 감축이행률
B3: 연 | C3: 2024 | D3: 2025 | E3: 2025 | F3: 2025 | G3: 2025 | H3: 2025 | I3: 2025 | J3: 2025 | K3: 2025 | L3: 2025 | M3: 2025 | N3: 2025
B4: 월 | C4: 12 | D4: 1 | E4: 2 | F4: 3 | G4: 4 | H4: 5 | I4: 6 | J4: 7 | K4: 8 | L4: 9 | M4: 10 | N4: 11 | O4: 평균
B5: 사업자01 | C5: 101.0448947 | D5: 116.6439945 | E5: - | F5: - | O5: 108.8444446
B6: 사업자02 | C6: 96.78745029 | D6: 96.60086226 | E6: - | F6: - | O6: 96.69539908
B7: 사업자03 | C7: 101.2115257 | D7: 97.54860498 | E7: - | F7: - | O7: 99.39650955
B8: 사업자04 | C8: 87.20595636 | D8: 93.47662012 | E8: - | F8: - | O8: 89.89800803
B9: 사업자05 | C9: 110.7785642 | D9: 86.10717897 | E9: - | F9: - | O9: 98.44287159
B10: 사업자06 | C10: 116.6312115 | D10: 99.2060044 | E10: - | F10: - | O10: 107.918608
B11: 사업자07 | C11: 115.2723627 | D11: 97.04921857 | E11: - | F11: - | O11: 106.1607907
B12: 사업자08 | C12: 114.7095436 | D12: 102.9834025 | E12: - | F12: - | O12: 108.846473
B13: 사업자09 | C13: 105.6117096 | D13: 93.09582529 | E13: - | F13: - | O13: 99.35376743
B14: 사업자10 | C14: 101.4261844 | D14: 107.747523 | E14: - | F14: - | O14: 104.5868537
B15: 사업자11 | C15: 130.1238868 | D15: 110.0193881 | E15: - | F15: - | O15: 120.0716375
B16: 사업자12 | C16: 161.655481 | D16: 129.9328859 | E16: - | F16: - | O16: 145.7941834
B17: 사업자13 | C17: 127.9836766 | D17: 113.5097726 | E17: - | F17: - | O17: 120.7467246
B18: 사업자14 | C18: 111.8489969 | D18: 89.62348058 | E18: - | F18: - | O18: 100.7362388
B19: 사업자15 | C19: 110.9179661 | D19: 107.319322 | E19: - | F19: - | O19: 109.1186441
B20: 사업자16 | C20: 101.6853147 | D20: 104.9009324 | E20: - | F20: - | O20: 103.2931235
B21: 사업자17 | C21: 114.4818304 | D21: 112.846568 | E21: - | F21: - | O21: 113.6641992
B22: 사업자18 | C22: 115.3104448 | D22: 81.87493033 | E22: - | F22: - | O22: 98.59268755
B23: 사업자19 | C23: 97.46956641 | D23: 109.6704871 | E23: - | F23: - | O23: 103.4287314
B24: 사업자20 | C24: 103.811256 | D24: 99.00549073 | E24: - | F24: - | O24: 101.4083734
B25: 사업자21 | C25: 108.9293629 | D25: 104.5581717 | E25: - | F25: - | O25: 106.7437673
B26: 사업자22 | C26: 122.3977695 | D26: 124.535316 | E26: - | F26: - | O26: 123.4665428
B27: 사업자23 | C27: 144.7774648 | D27: 147.5014085 | E27: - | F27: - | O27: 146.1394366
B28: 사업자24 | C28: 84.94490911 | D28: 107.2484831 | E28: - | F28: - | O28: 95.18890595
B29: 사업자25 | C29: 121.4387755 | D29: 131.4081633 | E29: - | F29: - | O29: 126.4234694
B30: 사업자26 | C30: 102.5570583 | D30: 119.6956889 | E30: - | F30: - | O30: 111.1263736
B31: 사업자27 | C31: 118.7129165 | D31: 117.3436787 | E31: - | F31: - | O31: 118.0282976
B32: 평균 | C32: 107.4680814 | D32: 100.8733785 | E32: - | F32: - | O32: 104.1876162

Sheet 사업자별 자발적DR 참여 실적
B2: ㅇ 자발적DR 입찰량
B3: 연 | C3: 2024 | D3: 2025 | E3: 2025 | F3: 2025 | G3: 2025 | H3: 2025 | I3: 2025 | J3: 2025 | K3: 2025 | L3: 2025 | M3: 2025 | N3: 2025
B4: 월 | C4: 12 | D4: 1 | E4: 2 | F4: 3 | G4: 4 | H4: 5 | I4: 6 | J4: 7 | K4: 8 | L4: 9 | M4: 10 | N4: 11 | O4: 합계
B5: 사업자01 | C5: 19318.1 | D5: 6674.7 | E5: 4448.6 | F5: 22950 | O5: =SUM(C5:N5) -> 53391.4
B6: 사업자02 | C6: 0 | D6: 0 | E6: 0 | F6: 0 | O6: 0
B7: 사업자03 | C7: 12375.3 | D7: 6507.7 | E7: 5545.1 | F7: 6997.5 | O7: 31425.6
B8: 사업자04 | C8: 80 | D8: 635 | E8: 28531 | F8: 1946 | O8: 31192
B9: 사업자05 | C9: 0 | D9: 0 | E9: 0 | F9: 0 | O9: 0
B10: 사업자06 | C10: 2198 | D10: 2002.6 | E10: 2095 | F10: 4101 | O10: 10396.6
B11: 사업자07 | C11: 30190.3 | D11: 36267.5 | E11: 21243.2 | F11: 40528.9 | O11: 128229.9
B12: 사업자08 | C12: 27 | D12: 7 | E12: 21 | F12: 23 | O12: 78
B13: 사업자09 | C13: 15423 | D13: 12910 | E13: 18320 | F13: 16223 | O13: 62876
B14: 사업자10 | C14: 0 | D14: 0 | E14: 0 | F14: 0 | O14: 0
B15: 사업자11 | C15: 1309.9 | D15: 543.4 | E15: 758 | F15: 599.5 | O15: 3210.8
B16: 사업자12 | C16: 1 | D16: 0 | E16: 0 | F16: 0 | O16: 1
B17: 사업자13 | C17: 371.1 | D17: 326.4 | E17: 131.1 | F17: 338 | O17: 1166.6
B18: 사업자14 | C18: 0 | D18: 0 | E18: 0 | F18: 0 | O18: 0
B19: 사업자15 | C19: 1383 | D19: 769 | E19: 473 | F19: 775 | O19: 3400
B20: 사업자16 | C20: 1983.9 | D20: 977.6 | E20: 825.6 | F20: 552 | O20: 4339.1
B21: 사업자17 | C21: 8.5 | D21: 60.6 | E21: 4.1 | F21: 5.9 | O21: 79.1
B22: 사업자18 | C22: 65 | D22: 55 | E22: 14 | F22: 10 | O22: 144
B23: 사업자19 | C23: 0 | D23: 0 | E23: 0 | F23: 0 | O23: 0
B24: 사업자20 | C24: 3104 | D24: 2093 | E24: 3548 | F24: 6008 | O24: 14753
B25: 사업자21 | C25: 1750.5 | D25: 851.7 | E25: 673.6 | F25: 509.4 | O25: 3785.2
B26: 사업자22 | C26: 0 | D26: 0 | E26: 0 | F26: 0 | O26: 0
B27: 사업자23 | C27: 3884 | D27: 3753 | E27: 1117 | F27: 6636 | O27: 15390
B28: 사업자24 | C28: 0 | D28: 24 | E28: 45.5 | F28: 21.5 | O28: 91
B29: 사업자25 | C29: 0 | D29: 0 | E29: 0 | F29: 0 | O29: 0
B30: 사업자26 | C30: 0 | D30: 0 | E30: 0 | F30: 0 | O30: 0
B31: 사업자27 | C31: 35.9 | D31: 0 | E31: 0 | F31: 0 | O31: 35.9
B32: 합계 | C32: 93508.5 | D32: 74458.2 | E32: =SUM(E5:E31) -> 87793.8 | F32: 108224.7 | G32: 0 | H32: 0 | I32: 0 | J32: 0 | K32: 0 | L32: 0 | M32: 0 | N32: 0 | O32: =SUM(C32:N32) -> 363985.2
B34: ㅇ 자발적DR 낙찰량
B35: 연 | C35: 2024 | D35: 2025 | E35: 2025 | F35: 2025 | G35: 2025 | H35: 2025 | I35: 2025 | J35: 2025 | K35: 2025 | L35: 2025 | M35: 2025 | N35: 2025
B36: 월 | C36: 12 | D36: 1 | E36: 2 | F36: 3 | G36: 4 | H36: 5 | I36: 6 | J36: 7 | K36: 8 | L36: 9 | M36: 10 | N36: 11 | O36: 합계
B37: 사업자01 | C37: 394.438 | D37: 1287.9 | E37: 476.138 | F37: 3702.228 | O37: =SUM(C37:N37) -> 5860.704
B38: 사업자02 | C38: 0 | D38: 0 | E38: 0 | F38: 0 | O38: =SUM(C38:N38) -> 0
B39: 사업자03 | C39: 629.938 | D39: 1096.569 | E39: 397.268 | F39: 918.054 | O39: 3041.829
B40: 사업자04 | C40: 0 | D40: 105 | E40: 340 | F40: 63 | O40: 508
B41: 사업자05 | C41: 0 | D41: 0 | E41: 0 | F41: 0 | O41: 0
B42: 사업자06 | C42: 97 | D42: 440.869 | E42: 135 | F42: 856 | O42: 1528.869
B43: 사업자07 | C43: 2282.112 | D43: 8814.109 | E43: 2827.462 | F43: 11490.948 | O43: 25414.631
B44: 사업자08 | C44: 1 | D44: 0 | E44: 0 | F44: 0 | O44: 1
B45: 사업자09 | C45: 539 | D45: 1792 | E45: 687 | F45: 1683 | O45: 4701
B46: 사업자10 | C46: 0 | D46: 0 | E46: 0 | F46: 0 | O46: 0
B47: 사업자11 | C47: 22.244 | D47: 30.7 | E47: 18 | F47: 129 | O47: 199.944
B48: 사업자12 | C48: 0 | D48: 0 | E48: 0 | F48: 0 | O48: 0
B49: 사업자13 | C49: 5.369 | D49: 21.134 | E49: 1.584 | F49: 2.945 | O49: 31.032
B50: 사업자14 | C50: 0 | D50: 0 | E50: 0 | F50: 0 | O50: 0
B51: 사업자15 | C51: 52.6 | D51: 72.856 | E51: 20 | F51: 13 | O51: 158.456
B52: 사업자16 | C52: 26.088 | D52: 491.64 | E52: 22.681 | F52: 45.128 | O52: 585.537
B53: 사업자17 | C53: 0 | D53: 8.687 | E53: 0.2 | F53: 0 | O53: 8.887
B54: 사업자18 | C54: 5.071 | D54: 4.833 | E54: 1.667 | F54: 1.497 | O54: 13.068
B55: 사업자19 | C55: 0 | D55: 0 | E55: 0 | F55: 0 | O55: 0
B56: 사업자20 | C56: 58 | D56: 284 | E56: 160 | F56: 1179 | O56: 1681
B57: 사업자21 | C57: 127 | D57: 30 | E57: 52 | F57: 13 | O57: 222
B58: 사업자22 | C58: 0 | D58: 0 | E58: 0 | F58: 0 | O58: 0
B59: 사업자23 | C59: 24 | D59: 689 | E59: 36 | F59: 798 | O59: 1547
B60: 사업자24 | C60: 0 | D60: 0 | E60: 2 | F60: 0 | O60: 2
B61: 사업자25 | C61: 0 | D61: 0 | E61: 0 | F61: 0 | O61: 0
B62: 사업자26 | C62: 0 | D62: 0 | E62: 0 | F62: 0 | O62: 0
B63: 사업자27 | C63: 0.769 | D63: 0 | E63: 0 | F63: 0 | O63: 0.769
B64: 합계 | C64: 4264.629 | D64: 15169.297 | E64: =SUM(E37:E63) -> 5177 | F64: 20894.8 | G64: 0 | H64: 0 | I64: 0 | J64: 0 | K64: 0 | L64: 0 | M64: 0 | N64: 0 | O64: 45505.726
B66: ㅇ 자발적DR 감축량
B67: 연 | C67: 2024 | D67: 2025 | E67: 2025 | F67: 2025 | G67: 2025 | H67: 2025 | I67: 2025 | J67: 2025 | K67: 2025 | L67: 2025 | M67: 2025 | N67: 2025
B68: 월 | C68: 12 | D68: 1 | E68: 2 | F68: 3 | G68: 4 | H68: 5 | I68: 6 | J68: 7 | K68: 8 | L68: 9 | M68: 10 | N68: 11 | O68: 합계
B69: 사업자01 | C69: 571.138 | D69: 2216.602 | E69: 679.645 | F69: 4691.865 | O69: =SUM(C69:N69) -> 8159.25
B70: 사업자02 | C70: 0 | D70: 0 | E70: 0 | F70: 0 | O70: =SUM(C70:N70) -> 0
B71: 사업자03 | C71: 774.377 | D71: 1492.823 | E71: 528.061 | F71: 1253.484 | O71: 4048.745
B72: 사업자04 | C72: 0 | D72: 196.436 | E72: 645.968 | F72: 85.549 | O72: 927.953
B73: 사업자05 | C73: 0 | D73: 0 | E73: 0 | F73: 0 | O73: 0
B74: 사업자06 | C74: 147.703 | D74: 489.982 | E74: 191.945 | F74: 965.655 | O74: 1795.285
B75: 사업자07 | C75: 3781.146 | D75: 12405.319 | E75: 3864.751 | F75: 21727.485 | O75: 41778.701
B76: 사업자08 | C76: 0.857 | D76: 0 | E76: 0 | F76: 0 | O76: 0.857
B77: 사업자09 | C77: 648.353 | D77: 2231.507 | E77: 767.552 | F77: 2326.159 | O77: 5973.571
B78: 사업자10 | C78: 0 | D78: 0 | E78: 0 | F78: 0 | O78: 0
B79: 사업자11 | C79: 24.589 | D79: 38.152 | E79: 21.964 | F79: 161.966 | O79: 246.671
B80: 사업자12 | C80: 0 | D80: 0 | E80: 0 | F80: 0 | O80: 0
B81: 사업자13 | C81: 8.848 | D81: 46.075 | E81: 2.08 | F81: 3.088 | O81: 60.091
B82: 사업자14 | C82: 0 | D82: 0 | E82: 0 | F82: 0 | O82: 0
B83: 사업자15 | C83: 90.306 | D83: 100.507 | E83: 23.74 | F83: 18.2 | O83: 232.753
B84: 사업자16 | C84: 46.662 | D84: 653.284 | E84: 27.593 | F84: 53.961 | O84: 781.5
B85: 사업자17 | C85: 0 | D85: 8.137 | E85: 0.186 | F85: 0 | O85: 8.323
B86: 사업자18 | C86: 8.372 | D86: 9.357 | E86: 1.383 | F86: 3.366 | O86: 22.478
B87: 사업자19 | C87: 0 | D87: 0 | E87: 0 | F87: 0 | O87: 0
B88: 사업자20 | C88: 72.985 | D88: 346.779 | E88: 198.259 | F88: 1358.076 | O88: 1976.099
B89: 사업자21 | C89: 152.541 | D89: 38.032 | E89: 61.825 | F89: 19.788 | O89: 272.186
B90: 사업자22 | C90: 0 | D90: 0 | E90: 0 | F90: 0 | O90: 0
B91: 사업자23 | C91: 30.644 | D91: 858.985 | E91: 52.889 | F91: 1325.014 | O91: 2267.532
B92: 사업자24 | C92: 0 | D92: 0 | E92: 2.563 | F92: 0 | O92: 2.563
B93: 사업자25 | C93: 0 | D93: 0 | E93: 0 | F93: 0 | O93: 0
B94: 사업자26 | C94: 0 | D94: 0 | E94: 0 | F94: 0 | O94: 0
B95: 사업자27 | C95: 1.193 | D95: 0 | E95: 0 | F95: 0 | O95: 1.193
B96: 합계 | C96: 6359.714 | D96: 21131.977 | E96: =SUM(E69:E95) -> 7070.404 | F96: 33993.656 | G96: 0 | H96: 0 | I96: 0 | J96: 0 | K96: 0 | L96: 0 | M96: 0 | N96: 0 | O96: 68555.751
B98: ㅇ 자발적DR 감축이행률
B99: 연 | C99: 2024 | D99: 2025 | E99: 2025 | F99: 2025 | G99: 2025 | H99: 2025 | I99: 2025 | J99: 2025 | K99: 2025 | L99: 2025 | M99: 2025 | N99: 2025
B100: 월 | C100: 12 | D100: 1 | E100: 2 | F100: 3 | G100: 4 | H100: 5 | I100: 6 | J100: 7 | K100: 8 | L100: 9 | M100: 10 | N100: 11 | O100: 평균
B101: 사업자01 | C101: =IFERROR(C69/C37*100,"-") -> 144.797915 | D101: 172.1097911 | E101: 142.7411801 | F101: 126.7308496 | G101: - | H101: - | I101: - | J101: - | K101: - | L101: - | M101: - | N101: - | O101: 139.2196228
B102: 사업자02 | C102: =IFERROR(C70/C38*100,"-") -> - | D102: - | E102: - | F102: - | G102: - | H102: - | I102: - | J102: - | K102: - | L102: - | M102: - | N102: - | O102: -
B103: 사업자03 | C103: =IFERROR(C71/C39*100,"-") -> 122.9290819 | D103: 136.1358018 | E103: 132.9231149 | F103: 136.5370664 | G103: - | H103: - | I103: - | J103: - | K103: - | L103: - | M103: - | N103: - | O103: 133.102321
B104: 사업자04 | C104: =IFERROR(C72/C40*100,"-") -> - | D104: 187.0819048 | E104: 189.9905882 | F104: 135.7920635 | G104: - | H104: - | I104: - | J104: - | K104: - | L104: - | M104: - | N104: - | O104: 182.6679134
B105: 사업자05 | C105: =IFERROR(C73/C41*100,"-") -> - | D105: - | E105: - | F105: - | G105: - | H105: - | I105: - | J105: - | K105: - | L105: - | M105: - | N105: - | O105: -
B106: 사업자06 | C106: =IFERROR(C74/C42*100,"-") -> 152.271134 | D106: 111.1400439 | E106: 142.1814815 | F106: 112.8101636 | G106: - | H106: - | I106: - | J106: - | K106: - | L106: - | M106: - | N106: - | O106: 117.4256918
B107: 사업자07 | C107: =IFERROR(C75/C43*100,"-") -> 165.686259 | D107: 140.7438801 | E107: 136.6862225 | F107: 189.0834855 | G107: - | H107: - | I107: - | J107: - | K107: - | L107: - | M107: - | N107: - | O107: 164.3883832
B108: 사업자08 | C108: =IFERROR(C76/C44*100,"-") -> 85.7 | D108: - | E108: - | F108: - | G108: - | H108: - | I108: - | J108: - | K108: - | L108: - | M108: - | N108: - | O108: 85.7
B109: 사업자09 | C109: =IFERROR(C77/C45*100,"-") -> 120.2881262 | D109: 124.5260603 | E109: 111.725182 | F109: 138.2150327 | G109: - | H109: - | I109: - | J109: - | K109: - | L109: - | M109: - | N109: - | O109: 127.0702191
B110: 사업자10 | C110: =IFERROR(C78/C46*100,"-") -> - | D110: - | E110: - | F110: - | G110: - | H110: - | I110: - | J110: - | K110: - | L110: - | M110: - | N110: - | O110: -
B111: 사업자11 | C111: =IFERROR(C79/C47*100,"-") -> 110.5421687 | D111: 124.2736156 | E111: 122.0222222 | F111: 125.5550388 | G111: - | H111: - | I111: - | J111: - | K111: - | L111: - | M111: - | N111: - | O111: 123.3700436
B112: 사업자12 | C112: =IFERROR(C80/C48*100,"-") -> - | D112: - | E112: - | F112: - | G112: - | H112: - | I112: - | J112: - | K112: - | L112: - | M112: - | N112: - | O112: -
B113: 사업자13 | C113: =IFERROR(C81/C49*100,"-") -> 164.797914 | D113: 218.0136273 | E113: 131.3131313 | F113: 104.8556876 | G113: - | H113: - | I113: - | J113: - | K113: - | L113: - | M113: - | N113: - | O113: 193.6420469
B114: 사업자14 | C114: =IFERROR(C82/C50*100,"-") -> - | D114: - | E114: - | F114: - | G114: - | H114: - | I114: - | J114: - | K114: - | L114: - | M114: - | N114: - | O114: -
B115: 사업자15 | C115: =IFERROR(C83/C51*100,"-") -> 171.6844106 | D115: 137.9529483 | E115: 118.7 | F115: 140 | G115: - | H115: - | I115: - | J115: - | K115: - | L115: - | M115: - | N115: - | O115: 146.8880951
B116: 사업자16 | C116: =IFERROR(C84/C52*100,"-") -> 178.8638454 | D116: 132.878529 | E116: 121.6568934 | F116: 119.573214 | G116: - | H116: - | I116: - | J116: - | K116: - | L116: - | M116: - | N116: - | O116: 133.4672275
B117: 사업자17 | C117: =IFERROR(C85/C53*100,"-") -> - | D117: 93.66870036 | E117: 93 | F117: - | G117: - | H117: - | I117: - | J117: - | K117: - | L117: - | M117: - | N117: - | O117: 93.6536514
B118: 사업자18 | C118: =IFERROR(C86/C54*100,"-") -> 165.0956419 | D118: 193.6064556 | E118: 82.96340732 | F118: 224.8496994 | G118: - | H118: - | I118: - | J118: - | K118: - | L118: - | M118: - | N118: - | O118: 172.0079584
B119: 사업자19 | C119: =IFERROR(C87/C55*100,"-") -> - | D119: - | E119: - | F119: - | G119: - | H119: - | I119: - | J119: - | K119: - | L119: - | M119: - | N119: - | O119: -
B120: 사업자20 | C120: =IFERROR(C88/C56*100,"-") -> 125.8362069 | D120: 122.1052817 | E120: 123.911875 | F120: 115.1888041 | G120: - | H120: - | I120: - | J120: - | K120: - | L120: - | M120: - | N120: - | O120: 117.5549673
B121: 사업자21 | C121: =IFERROR(C89/C57*100,"-") -> 120.1110236 | D121: 126.7733333 | E121: 118.8942308 | F121: 152.2153846 | G121: - | H121: - | I121: - | J121: - | K121: - | L121: - | M121: - | N121: - | O121: 122.6063063
B122: 사업자22 | C122: =IFERROR(C90/C58*100,"-") -> - | D122: - | E122: - | F122: - | G122: - | H122: - | I122: - | J122: - | K122: - | L122: - | M122: - | N122: - | O122: -
B123: 사업자23 | C123: =IFERROR(C91/C59*100,"-") -> 127.6833333 | D123: 124.6712627 | E123: 146.9138889 | F123: 166.0418546 | G123: - | H123: - | I123: - | J123: - | K123: - | L123: - | M123: - | N123: - | O123: 146.5760827
B124: 사업자24 | C124: =IFERROR(C92/C60*100,"-") -> - | D124: - | E124: 128.15 | F124: - | G124: - | H124: - | I124: - | J124: - | K124: - | L124: - | M124: - | N124: - | O124: 128.15
B125: 사업자25 | C125: =IFERROR(C93/C61*100,"-") -> - | D125: - | E125: - | F125: - | G125: - | H125: - | I125: - | J125: - | K125: - | L125: - | M125: - | N125: - | O125: -
B126: 사업자26 | C126: =IFERROR(C94/C62*100,"-") -> - | D126: - | E126: - | F126: - | G126: - | H126: - | I126: - | J126: - | K126: - | L126: - | M126: - | N126: - | O126: -
B127: 사업자27 | C127: =IFERROR(C95/C63*100,"-") -> 155.136541 | D127: - | E127: - | F127: - | G127: - | H127: - | I127: - | J127: - | K127: - | L127: - | M127: - | N127: - | O127: 155.136541
B128: 평균 | C128: =IFERROR(C96/C64*100,"-") -> 149.1270167 | D128: 139.3075566 | E128: 136.5733823 | F128: 162.6895496 | G128: - | H128: - | I128: - | J128: - | K128: - | L128: - | M128: - | N128: - | O128: 150.6530211

Sheet 사업자별 거래제한 및 입찰제한 내역
B2: ㅇ 신뢰성DR 이행률 80% 미만 횟수 및 거래제한 자원 수
B3: 이행률 80% 미만 횟수 | P3: 거래제한 자원 수
B4: 연 | C4: 2024 | D4: 2025 | E4: 2025 | F4: 2025 | G4: 2025 | H4: 2025 | I4: 2025 | J4: 2025 | K4: 2025 | L4: 2025 | M4: 2025 | N4: 2025
B5: 월 | C5: 12 | D5: 1 | E5: 2 | F5: 3 | G5: 4 | H5: 5 | I5: 6 | J5: 7 | K5: 8 | L5: 9 | M5: 10 | N5: 11 | O5: 합계
B6: 사업자01 | C6: 0 | D6: 0 | E6: 0 | F6: 0 | O6: =SUM(C6:N6) -> 0 | P6: 0
B7: 사업자02 | C7: 0 | D7: 0 | E7: 0 | F7: 0 | O7: =SUM(C7:N7) -> 0 | P7: 0
B8: 사업자03 | C8: 0 | D8: 0 | E8: 0 | F8: 0 | O8: 0 | P8: 0
B9: 사업자04 | C9: 1 | D9: 1 | E9: 0 | F9: 0 | O9: 2 | P9: 0
B10: 사업자05 | C10: 0 | D10: 1 | E10: 0 | F10: 0 | O10: 1 | P10: 0
B11: 사업자06 | C11: 0 | D11: 0 | E11: 0 | F11: 0 | O11: 0 | P11: 0
B12: 사업자07 | C12: 0 | D12: 0 | E12: 0 | F12: 0 | O12: 0 | P12: 0
B13: 사업자08 | C13: 0 | D13: 0 | E13: 0 | F13: 0 | O13: 0 | P13: 0
B14: 사업자09 | C14: 0 | D14: 0 | E14: 0 | F14: 0 | O14: 0 | P14: 0
B15: 사업자10 | C15: 0 | D15: 0 | E15: 0 | F15: 0 | O15: 0 | P15: 0
B16: 사업자11 | C16: 0 | D16: 1 | E16: 0 | F16: 0 | O16: 1 | P16: 0
B17: 사업자12 | C17: 0 | D17: 0 | E17: 0 | F17: 0 | O17: 0 | P17: 0
B18: 사업자13 | C18: 0 | D18: 0 | E18: 0 | F18: 0 | O18: 0 | P18: 0
B19: 사업자14 | C19: 0 | D19: 1 | E19: 0 | F19: 0 | O19: 1 | P19: 0
B20: 사업자15 | C20: 0 | D20: 0 | E20: 0 | F20: 0 | O20: 0 | P20: 0
B21: 사업자16 | C21: 0 | D21: 0 | E21: 0 | F21: 0 | O21: 0 | P21: 0
B22: 사업자17 | C22: 0 | D22: 0 | E22: 0 | F22: 0 | O22: 0 | P22: 0
B23: 사업자18 | C23: 0 | D23: 1 | E23: 0 | F23: 0 | O23: 1 | P23: 0
B24: 사업자19 | C24: 0 | D24: 0 | E24: 0 | F24: 0 | O24: 0 | P24: 0
B25: 사업자20 | C25: 0 | D25: 0 | E25: 0 | F25: 0 | O25: 0 | P25: 0
B26: 사업자21 | C26: 0 | D26: 0 | E26: 0 | F26: 0 | O26: 0 | P26: 0
B27: 사업자22 | C27: 0 | D27: 0 | E27: 0 | F27: 0 | O27: 0 | P27: 0
B28: 사업자23 | C28: 0 | D28: 0 | E28: 0 | F28: 0 | O28: 0 | P28: 0
B29: 사업자24 | C29: 0 | D29: 0 | E29: 0 | F29: 0 | O29: 0 | P29: 0
B30: 사업자25 | C30: 0 | D30: 0 | E30: 0 | F30: 0 | O30: 0 | P30: 0
B31: 사업자26 | C31: 0 | D31: 0 | E31: 0 | F31: 0 | O31: 0 | P31: 0
B32: 사업자27 | C32: 0 | D32: 0 | E32: 0 | F32: 0 | O32: 0 | P32: 0
B33: 합계 | C33: 1 | D33: 5 | E33: 0 | F33: 0 | O33: 6 | P33: =SUM(P6:P32) -> 0
B35: ㅇ 자발적DR 이행률 80% 미만 횟수 및 입찰제한 자원 수
B36: 이행률 80% 미만 횟수 | P36: 입찰제한 자원 수
B37: 연 | C37: 2024 | D37: 2025 | E37: 2025 | F37: 2025 | G37: 2025 | H37: 2025 | I37: 2025 | J37: 2025 | K37: 2025 | L37: 2025 | M37: 2025 | N37: 2025
B38: 월 | C38: 12 | D38: 1 | E38: 2 | F38: 3 | G38: 4 | H38: 5 | I38: 6 | J38: 7 | K38: 8 | L38: 9 | M38: 10 | N38: 11 | O38: 합계
B39: 사업자01 | C39: 0 | D39: 0 | E39: 0 | F39: 0 | O39: =SUM(C39:N39) -> 0 | P39: 0
B40: 사업자02 | C40: 0 | D40: 0 | E40: 0 | F40: 0 | O40: =SUM(C40:N40) -> 0 | P40: 0
B41: 사업자03 | C41: 1 | D41: 0 | E41: 0 | F41: 0 | O41: 1 | P41: 0
B42: 사업자04 | C42: 0 | D42: 0 | E42: 0 | F42: 0 | O42: 0 | P42: 0
B43: 사업자05 | C43: 0 | D43: 0 | E43: 0 | F43: 0 | O43: 0 | P43: 0
B44: 사업자06 | C44: 0 | D44: 0 | E44: 0 | F44: 0 | O44: 0 | P44: 0
B45: 사업자07 | C45: 0 | D45: 0 | E45: 1 | F45: 1 | O45: 2 | P45: 0
B46: 사업자08 | C46: 0 | D46: 0 | E46: 0 | F46: 0 | O46: 0 | P46: 0
B47: 사업자09 | C47: 0 | D47: 0 | E47: 0 | F47: 0 | O47: 0 | P47: 0
B48: 사업자10 | C48: 0 | D48: 0 | E48: 0 | F48: 0 | O48: 0 | P48: 0
B49: 사업자11 | C49: 0 | D49: 0 | E49: 0 | F49: 0 | O49: 0 | P49: 0
B50: 사업자12 | C50: 0 | D50: 0 | E50: 0 | F50: 0 | O50: 0 | P50: 0
B51: 사업자13 | C51: 0 | D51: 0 | E51: 0 | F51: 0 | O51: 0 | P51: 0
B52: 사업자14 | C52: 0 | D52: 0 | E52: 0 | F52: 0 | O52: 0 | P52: 0
B53: 사업자15 | C53: 2 | D53: 0 | E53: 0 | F53: 0 | O53: 2 | P53: 0
B54: 사업자16 | C54: 2 | D54: 0 | E54: 1 | F54: 1 | O54: 4 | P54: 1
B55: 사업자17 | C55: 0 | D55: 1 | E55: 0 | F55: 0 | O55: 1 | P55: 0
B56: 사업자18 | C56: 1 | D56: 0 | E56: 0 | F56: 0 | O56: 1 | P56: 0
B57: 사업자19 | C57: 0 | D57: 0 | E57: 0 | F57: 0 | O57: 0 | P57: 0
B58: 사업자20 | C58: 0 | D58: 0 | E58: 0 | F58: 0 | O58: 0 | P58: 0
B59: 사업자21 | C59: 0 | D59: 0 | E59: 0 | F59: 0 | O59: 0 | P59: 0
B60: 사업자22 | C60: 0 | D60: 0 | E60: 0 | F60: 0 | O60: 0 | P60: 0
B61: 사업자23 | C61: 0 | D61: 0 | E61: 0 | F61: 0 | O61: 0 | P61: 0
B62: 사업자24 | C62: 0 | D62: 0 | E62: 0 | F62: 0 | O62: 0 | P62: 0
B63: 사업자25 | C63: 0 | D63: 0 | E63: 0 | F63: 0 | O63: 0 | P63: 0
B64: 사업자26 | C64: 0 | D64: 0 | E64: 0 | F64: 0 | O64: 0 | P64: 0
B65: 사업자27 | C65: 0 | D65: 0 | E65: 0 | F65: 0 | O65: 0 | P65: 0
B66: 합계 | C66: 6 | D66: 1 | E66: 2 | F66: 2 | O66: 11 | P66: 1
